{"text_format":"1","workbook":"xlsx","n_sheets":7,"sheets":["Settings","TranslatedLanguages","Workload","Schedule","Progress","AnalysisReport","Calendar"],"not_rendered":{"charts":1,"images":0,"macros":1,"external_links":1,"defined_names":68,"comments":0,"pivot_tables":0},"unopened":[],"bounds":{"document_bytes":16777216,"sheet_cells":100000,"rows_first":2000,"rows_last":500,"rows_between":2000,"halvings":0,"cell_chars":16384,"cell_head_chars":4096},"cells_cut":0,"cells_raw":0,"read":"whole","date_system":"1900"}

{"sheet":"Settings","index":0,"n_rows":15,"n_cols":64,"rows_kept":15,"cut":false,"hidden":true,"merged":[]}
["ITEM","VALUE1","VALUE2","VALUE3","INSERTED_DATE","UPDATED_DATE"]
["COMPANY","XLWorks",null,null,"DO NOT UPDATE"]
["AUTHOR_NAME","XLWorks",null,null,"DO NOT UPDATE"]
["AUTHOR_EMAIL","admin@xlworks.net",null,null,"DO NOT UPDATE"]
["PROGRAM_NAME","XLGantt",null,null,"DO NOT UPDATE"]
["PROGRAM_SITE","http://xlworks.net",null,null,"DO NOT UPDATE"]
["PROGRAM_SITE_DISP","XLWorks",null,null,"DO NOT UPDATE"]
["VERSION","2.1.0","{\"TASK_FIRST_COL\":\"5\",\"START_ROW\":\"5\",\"WBS_AREA_LAST_COL\":\"28\"}",82,"DO NOT UPDATE"]
["RELEASE_DATE","2018-10-14",null,null,"DO NOT UPDATE"]
["LICENSE","Freeware",null,null,"DO NOT UPDATE"]
["OPTIONS_GENERAL","Name:projectName","OOO 프로젝트","Name:isConfirmedProjectBasicInfo",1,"Name:projectStartDate","2018-10-02","Name:projectEndDate","2019-03-02","Name:scheduleSheetPosition","SCHEDULE_SHEET_POSITION:3545121314151617181920212223242526272829","Name:setTaskDateToProjectDate",1,"Name:optScheduleChangeMgt",0,"Name:optPlanRateCriteriaDate","TODAY","Name:optFirstDayOfWeek",1,"Name:chkWBSUpdateExecuteYN",1,"Name:chkCheckForUpdatesOnStartup",0,"Name:optNonWorkingDays",1]
["OPTIONS_WBS_GANTT","Name:completeTaskGrayDisplay",1,"Name:taskDispInGroup",1,"Name:taskDispInSub",0,"Name:dateDisp",1,"Name:ganttColWidth",0.7,"Name:taskNameDisplayPosition",2,"Name:actualRateDisp",1,"Name:groupTaskInteriorGrayDisplay",1,"Name:optGanttChartColumnDisplay",7,"Name:applyUserInputFirst",0,"Name:txtGanttChartZoomRatio",100,"Name:plannedRateDisp",0,"Name:resourceDisp",1,"Name:taskDisp",1,"Name:groupRows",1]
["OPTIONS_DELIVERABLES_MGT","Name:chkDeliverablesMgt",1,"Name:savePathType","DEFINED","Name:txtDefinedPath","C:\\Temp","Name:txtAutoDefinedBasePath","C:\\Temp"]
["OPTIONS_DELIVERABLES_PGM_PATH","Name:txtPgmName1","파워포인트","Name:txtFileExt1","ppt*","Name:txtPgmPath1","자동지정","Name:chkInclude2SelectList1",false,"Name:txtPgmName2","워드","Name:txtFileExt2","doc*","Name:txtPgmPath2","자동지정","Name:chkInclude2SelectList2",false,"Name:txtPgmName3","엑셀","Name:txtFileExt3","xls*","Name:txtPgmPath3","자동지정","Name:chkInclude2SelectList3",true,"Name:txtPgmName4","Auto CAD","Name:txtFileExt4","cad","Name:txtPgmPath4","c:\\cad\\cad\\cad.exe","Name:chkInclude2SelectList4",true,"Name:txtPgmName5","아크로에디터","Name:txtFileExt5","ace","Name:txtPgmPath5","c:\\ace\\aaa.exe","Name:chkInclude2SelectList5",false,"Name:txtPgmName6","메모장","Name:txtFileExt6","txt","Name:txtPgmPath6","C:\\WINDOWS\\system32\\notepad.exe","Name:chkInclude2SelectList6",true,"Name:txtPgmName7",null,"Name:txtFileExt7",null,"Name:txtPgmPath7",null,"Name:chkInclude2SelectList7",null,"Name:txtPgmName8",null,"Name:txtFileExt8",null,"Name:txtPgmPath8",null,"Name:chkInclude2SelectList8"]
["OPTIONS_LANGUAGE","Name:languageSelectionType",0,"Name:languageSelectedByManual",1,"Name:selectedLanguageList","1:English,82:Korean","Name:lastTranslatedLanguage",82]

{"sheet":"TranslatedLanguages","index":1,"n_rows":435,"n_cols":5,"rows_kept":435,"cut":false,"hidden":true,"merged":[]}
["Reserved","Text Index","Description","English","Korean"]
["E",1,null,"* Currently we support only English and Korean as user interface (UI) languages at XLGantt. If you want to use another language as your UI language, add it using the \"Add Languages\" menu. Add a translation for each language in the \"TranslatedLanguages\" sheet. (The TranslatedLanguages sheet is hidden. You can unhide it on the sheet menu.) If you do not add the translation, English is used as the UI language.","* 현재 XLGantt는 영어와 한국어만 지원합니다. 다른 언어가 필요하면  아래 \"언어추가\"에서 다른 언어를 추가하고 TranslatedLanguages sheet에 각 언어별로 번역을 추가해야 합니다. 번역을 추가하지 않으면 기본언어인 영어로 표시됩니다(TranslatedLanguages sheet는 숨겨져 있음,Sheet메뉴에서 숨기기 취소하면 볼 수 있음)"]
[450,2,null,"Please enter nonworking days only. All days other than nonworking days will be set as working days. \\nWhen you enter nonworking days, XLGantt excludes them from calculations of working time.\\n(However, depending on the calendar setting in the Options window, the calculation method of the nonworking day can be different)\\nStandard calendar is the default calendar. If you want to specify a different calendar for a specific task, please use \"User Defined Calendar 1\" or \"User Defined Calendar 2\"","여기에는 프로젝트의 휴무일만 입력하세요.휴무일을 제외한 날짜는 근무일자로 설정됩니다. \\n휴무일을 입력해야 작업기간 계산시 반영합니다. 입력한 일자만큼 작업기간에서 제외합니다.\\n(단, 옵션창의 캘린더 설정에 따라 휴무일계산방법은 달라질 수 있습니다.)\\n표준캘린더는 기본으로 적용되는 캘린더이며 특정 작업에 다른 캘린더를 지정하고 싶으면 \"사용자정의 캘린더1\", \"사용자정의 캘린더2\"에 휴무일을 지정하여 사용합니다."]
[null,3,null,"The earliest start date({1}) of the tasks is earlier than the start date({2}) of the project.\\n\\nThe latest finish date({3}) of the tasks is later than the finish date({4}) of the project.\\n\\nIn this case, there may be problems with resource calculations. Please change the start date and finish date to valid date.","가장 빠른 작업의 시작일({1})이 프로젝트 시작일({2})보다 더 빠릅니다.\\n\\n가장 늦은 완료일({3})이 프로젝트 기간정보의 완료일({4})보다 더 늦습니다.\\n\\n이 경우 리소스 계산등에 문제가 있을 수 있습니다. 시작일,완료일을 환경설정메뉴의 프로젝트 기간내로 조정하거나 프로젝트 기간을 조정하시기 바랍니다."]
[null,4,null,"Error! Cause may be one of the following.\\n * File is invalid(e.g. the Excel file corrupted)\\n * Data format is invalid(First row:title, from second row:contents or XLGantt file is valid)\\n * If you cancel to open the file that is already opened\\n\\n Please check the messages below for details.","작업 중 에러가 발생했습니다. 원인은 다음 중 하나일 수 있습니다.\\n - 파일이 비정상적인 경우(엑셀파일이 손상된 경우 등)\\n - 자료 포맷이 틀린 경우(1행에 제목, 2행부터 내용이 들어가 있는 포맷 또는 XLGantt 파일만 허용)\\n - 이미 열려있는 파일을 또 열다가 취소하는 경우\\n\\n 자세한 원인은 아래의 메시지를 확인하시기 바랍니다."]
[null,5,null,"* You can import  files created in XLGantt.\r\n* You can import files if the version is 0.9.7 or higher than 0.9.7\r\n* You can import up to 10,000 records.\r\n* You can import multiple files simultaneously.","* 가져올 파일이 XLGantt로 작성된 경우만 가능\r\n\\n* XLGantt의 버전이 0.9.7 이상인 경우만 가능\\n* 자료의 갯수는 10,000개 이하까지만 처리됨\r\n\\n* 여러개의 파일 동시처리 가능\r\n"]
[null,6,null,"Project duration is too long. The earliest start date is {1} and the latest finish date is {2}, so the project duration is {3} days. The maximum number of days allowed in XLGantt is {4} days. Reduce the project duration to within the limits allowed by XLGantt.","프로젝트 기간이 너무 깁니다. 가장 빠른 시작일자는 {1}이고 가장 늦은 완료일자는 {2}이므로 프로젝트 기간은 {3}일입니다. XLGantt에서 허용되는 최대일수는 {4}일입니다. 프로젝트 기간을 XLGantt에서 허용하는 범위내로 줄이십시오."]
[null,7,null,"Saturdays, Sundays and the dates entered in the Calendar sheet\r","토요일,일요일 및 Calendar sheet에 입력된 날짜\r"]
[null,101,null,"              From                      To"," Source필드 명       Target필드 명"]
[null,102,null,"           Field Name         Example"," 필드 명                값 예시"]
[null,103,null,"       Field Name           Field Value"," 필드 명                필드 값"]
[null,104,null," Mapped"," Mapping된 상태"]
[null,105,null," Setting nonworking days in the project calendar"," 프로젝트 휴무일 Calendar 설정"]
[null,106,null,"\"%Work Complete\" is invalid. Type a number between 0% and 100%.","실적진척율은 0~100% 범위만 입력가능합니다."]
[null,107,null,"\"Outline level\"(task Level) field. It displays the level of a task.Instead of \"Outline level\", you can use \"WBS\".","개요수준(작업Level)필드입니다. 작업의 Level을 표시합니다. 예를 들어 2 Level의 작업이면 숫자 2로 표시됩니다. 개요수준대신 WBS필드(1.3.2 등의 형식으로 표시)를 사용하기도 합니다."]
[null,108,null,"\"WBS\"(Work Breakdown Structure) field. It displays the level of a task. Instead of WBS, you can use \"Outline level\".","WBS(Work Breakdown Structure) 필드입니다. 작업의 Level을 표시합니다. 1.3.2 등의 형식으로 표시됩니다. WBS대신 개요수준(작업Level)필드를 사용하기도 합니다. 예를 들어 2 Level의 작업이면 숫자 2로 표시됩니다."]
[null,109,null,"%Work Complete","실적진척율"]
[null,110,null,"%Work Complete(B)","실적 진척율(B)"]
[null,111,null,"%Work Complete(C/A)","실적(C/A)"]
[null,112,"for import columun","%Work__Complete","실적"]
[null,113,null,"%Work\\nComplete","실적"]
[null,114,null,"* Automactically calulated if you click the \"Update Schedule\" button","* \"스케줄업데이트\" 버튼 클릭 시 아래 항목이 자동계산됩니다."]
[null,115,null,"* Choose a language","* 언어를 선택하세요"]
[null,116,null,"* Common Excel file, Not XLGantt file\\n   (First row is title,from second rows are contents)\\n* You can import only one file at once.","* XLGantt 파일이 아닌 Excel파일(1행은 제목, 2행부터 내용이 있는 파일)\\n* 자료갯수 제한 없음\\n* 한번에 한개의 파일만 처리됨"]
[null,117,null,"* This sheet shows you planned project progresses by weeks.","* 주별로 프로젝트의 계획진적율을 보여줍니다."]
[null,118,null,"* This sheet shows you tasks, workloads, progresses(%Work complete), etc by resources.","* 담당별로 투입된 Task와 총작업량, 계획작업량, 진척작업을 Man-day로 보여주고, 계획/실적 진행율을 보여줍니다."]
[null,119,null,"* This sheet shows you workload allocations by resources.","* 담당별 Workload를 보여줍니다."]
[null,120,null,"* This sheet shows you workload allocations by weeks or months.","* 주별 또는 월별 Workload를 보여줍니다."]
[null,121,null,"* This sheet shows you workload and %Work complete.","* 프로젝트 작업량과 진척율을 보여줍니다."]
[null,122,null,"* You need to click the \"Planned Progress\" button to update the contents.","* \"계획진척율\" 메뉴를 클릭해야 갱신됨"]
[null,123,null,"* You need to click the \"Progresses by Resources\" button to update contents.","* \"담당별진행율\" 메뉴를 클릭해야 내용이 갱신됩니다."]
[null,124,null,"* You need to click the \"Workloads by Resources\" button to update the contents.","* \"Workload(담당별)\" 메뉴를 클릭해야 내용이 갱신됩니다."]
[null,125,null,"* You need to click the \"Workloads by Weeks\" or \"Workloads by Months\" button to update the contents.","* \"Workload(주별)\" 또는 \"Workload(월별)\" 메뉴를 클릭해야 내용이 갱신됩니다."]
[null,126,null,"[Resources unspecified]","[담당자미지정]"]
[null,127,null,"{} \"Outlook Appointment(s)\" have been added.","Outlook일정이 {}건 등록되었습니다."]
[null,128,null,"{} \"Outlook Task(s)\" have been added.","Outlook작업이 {}건 등록되었습니다."]
[null,129,null,"{} file does not exist.","{} 파일이 존재하지 않습니다"]
[null,130,null,"<< Remove","<< 제거"]
[null,131,null,"<< Unmap","<< Mapping취소"]
[null,132,null,"12/1/2018","2018-12-01"]
[null,133,null,"12/1/2018","2018-12-01"]
[null,134,null,"12/31/2018","2018-12-31"]
[null,135,null,"12/31/2018","2018-12-31"]
[null,136,null,"About","About"]
[null,137,null,"Accumulated\\nMan-Day","누적\\nMan-Day"]
[null,138,"manual input","Actual","실적"]
[null,139,null,"Actual %Complete is invalid. Enter a number only. Verify row {} of the source file.","실적진척율에 숫자가 아닌 값이 포함되어 있습니다. Import하는 파일의 {}행을 확인하세요."]
[null,140,null,"Actual %Work Complete from the start date to the current date","현재날짜까지 실제로 진행된 진척율, WBS의 \"실적진척율\"의 전체 합계 진척율을 표시함"]
[null,141,null,"Actual Finish","실제완료일"]
[null,142,null,"Actual Finish Date","실제완료일자"]
[null,143,null,"Actual finish date field of a task. It must be in date format.","각 작업의 실제완료일(또는 실제종료일)을 표시합니다. 반드시 날짜 형식이어야 합니다."]
[null,144,null,"Actual finish date is invalid.","실제완료일의 날짜형식이 잘못되었습니다."]
[null,145,null,"Actual finish date is invalid. Verify row {} of the source file.","실제완료일자에 날짜가 아닌 값이 포함되어 있습니다. Import하는 파일의 {}행을 확인하세요."]
[null,146,null,"Actual progress rate(%Work Complete) field.","실제진척율 필드입니다. 현재까지 실제 진척된 작업량을 %로 표현합니다."]
[null,147,null,"Actual Start","실제시작일"]
[null,148,null,"Actual Start Date","실제시작일자"]
[null,149,null,"Actual start date field of a task. It must be in date format.","각 작업의 실제시작일을 표시합니다. 반드시 날짜 형식이어야 합니다."]
[null,150,null,"Actual start date is invalid.","실제시작일의 날짜형식이 잘못되었습니다."]
[null,151,null,"Actual start date is invalid. Verify row {} of the source file.","실제시작일자에 날짜가 아닌 값이 포함되어 있습니다. Import하는 파일의 {}행을 확인하세요."]
[null,152,null,"Actual Total Work\\nMan-day","실제 총작업량\\nMan-day"]
[null,153,"for import columun","Actual Total__Duration","실제 총기간__(전체 기간)"]
[null,154,null,"Actual Total\\nDuration","실제\\n총기간"]
[null,155,null,"Actual Total\\nWork(Total\\nManDay)","실제 총작업량\\n(총ManDay,\r가중치 감안)"]
[null,156,"for import columun","Actual__Finish","실제__완료일"]
[null,157,"for import columun","Actual__Start","실제__시작일"]
[null,158,"for import columun","Actual__Total Duration","실제__총기간"]
[null,159,"for import columun","Actual__Total Work","실제__총작업량"]
[null,160,null,"Actual\\nFinish","실제\\n완료일"]
[null,161,null,"Actual\\nStart","실제\\n시작일"]
[null,162,null,"Actual\\nStart-Finish","실제\r\\n시작일-완료일"]
[null,163,null,"Actual\\nTotal Duration","실제\\n총기간"]
[null,164,null,"Actual\\nTotal Work","실제\\n총작업량"]
[null,165,null,"Actually performed workload","실제 진행된 작업량"]
[null,166,null,"Actually Performed workload when managing schedule changes","일정변경 관리할 때 현재까지 실제로 투입된 작업기간을 표시함"]
[null,167,null,"Actually performed workload when not managing schedule changes(Total Duration x %Work Complete)","일정변경관리 하지 않을 때 현재까지 실제로 진행된 작업기간을 표시함(총기간 x 총실적진행율)"]
[null,168,null,"Add >>","추가 >>"]
[null,169,null,"Add Languages","언어 추가"]
[null,170,null,"Add to MS Outlook Calendar","MS Outlook일정 등록"]
[null,171,null,"Add to MS Outlook Task","MS Outlook작업 등록"]
[null,172,null,"After turning off filtering, we'll proceed.","필터를 해제하고 작업을 진행합니다."]
[null,173,null,"All tasks","전체 조회(필터 해제)"]
[null,174,null,"An error occurred while checking for updates. Please try again \\nError Message: {}","최신버전 확인 중 에러가 발생했습니다. 잠시 후 다시 시도하세요.\\n에러메시지 : {}"]
[null,175,null,"An error occurred while checking XLGantt cell formats. Please restart XLGantt.","서식check 중 에러가 발생하였습니다. XLGantt를 종료하고 다시 시작하십시오."]
[null,176,null,"An error occurred while processing. Please check the messages below.","처리 중 에러가 발생했습니다. 아래의 메시지를 확인하십시오."]
[null,177,null,"Analysis","분석"]
[null,178,null,"Automatically defined","자동지정"]
[null,179,null,"Available Languages","추가 가능한 언어"]
[null,180,null,"Bar chart Text Display Position","Bar chart의 텍스트 표시 위치"]
[null,181,null,"Because the following task already has been added, XLGantt does not add it to \"Outlook\".\\n\\nTask Name : {1} \\nDue Date : {2}","다음 작업은 이미 등록되어 있으므로 등록하지 않습니다.\\n\\n작업명 : {1} \\n기한 : {2}"]
[null,182,null,"Because the following task already has been added, XLGantt does not add it to \"Outlook\".\\n\\nTask Name : {1} \\nStart Date : {2}","다음 작업은 이미 등록되어 있으므로 등록하지 않습니다.\\n\\n작업명 : {1} \\n시작일 : {2}"]
[null,183,null,"blabla","..."]
[null,184,null,"By %Work Complete","완료율"]
[null,185,null,"By Duration","기간"]
[null,186,null,"By Resource","담당"]
[null,187,null,"Calculation Base Date of Planned %Work Complete","계획진척율 계산 기준일자"]
[null,188,null,"Calculation Base Date of Planned %Work Complete must be greater than or equal to project start date.","계획진척율 계산 기준일자는 프로젝트 시작일보다 크거나 같아야 합니다."]
[null,189,null,"Calculation Base Date of Planned %Work Complete must be less than or equal to project finish date.","계획진척율 계산 기준일자는 프로젝트 완료일보다 작거나 같아야 합니다."]
[null,190,null,"Calendar","Calendar"]
[null,191,null,"Cancel","취소"]
[null,192,null,"Chart","차트"]
[null,193,null,"Check for Updates","최신버전확인"]
[null,194,null,"Check for Updates on Startup ","프로그램 시작 시 최신버전 확인"]
[null,195,null,"Check if you save deliverables in specific directory","산출물 관리를 할 경우에 체크하세요"]
[null,196,null,"Choose a file type to import","가져올 파일 종류 선택"]
[null,197,null,"Choose a language used in XLGantt","XLGantt에서 사용할 언어 선택"]
[null,198,null,"Choose a language used in XLGantt.","XLGantt에서 사용할 언어를 선택하세요."]
[null,199,null,"Choose a language.","언어를 선택하세요"]
[null,200,null,"Choose an import option.","가져오기 옵션을 선택하세요."]
[null,201,null,"Choose directly","컴퓨터 O/S와 관계없이 직접 선택"]
[null,202,null,"Choose the Type of Deliverables","산출물 종류를 선택하세요"]
[null,203,null,"Close","닫기"]
[null,204,null,"Completed(=100%)","완료"]
[null,205,null,"Contains","포함"]
[null,206,null,"Current Version","현재 사용중인 버전"]
[null,207,null,"Daily","일별"]
[null,208,null,"Daily view","일별보기"]
[null,209,null,"Days (Average number of working days per month)","일 (월평균 근무일수)"]
[null,210,null,"Days counted as Nonworking days ","휴무일로 계산되는 날"]
[null,211,null,"Deliverables","산출물"]
[null,212,null,"Deliverables field.","산출물 필드입니다."]
[null,213,null,"Deliverables type is not selected","산출물 종류가 선택되지 않았습니다"]
[null,214,null,"Display  % Work Complete","실적진척율 표시"]
[null,215,null,"Display date","날짜 표시"]
[null,216,null,"Display font color to the gray for the completed tasks","완료된 작업의 폰트색상 회색표시"]
[null,217,null,"Display interior color to the gray for the task groups","작업그룹의 배경색 회색표시"]
[null,218,null,"Display Planned %Work Complete","계획진척율 표시"]
[null,219,null,"Display resource","담당 표시"]
[null,220,null,"Display task name ","작업명 표시"]
[null,221,null,"Display the task name in the same field","같은 필드에 작업명 표시"]
[null,222,null,"Display the total workload of the project","프로젝트 전체의 작업량을 Man/Day로 표시한다. 가중치를 적용한 값이다."]
[null,223,null,"Displays the task name in the different field for each level","Level별로 다른 필드에 작업명 표시"]
[null,224,null,"Download the latest version","프로그램 최신버전 다운로드"]
[null,225,null,"Drawing Gantt chart","Gantt chart 그리기 작업"]
[null,226,null,"Drawing progress line","진척율선 그리기"]
[null,227,null,"Duration ","기간 지정"]
[null,228,null,"Edit a Task","작업 정보"]
[null,229,null,"Enabled Languages","사용할 수 있는 언어"]
[null,230,null,"Equals","같음"]
[null,231,null,"Error! Calculated Total Man-Day is different from the Total Man-Day of the {} sheet.","오류! 계산된 Total Man-Day가 {} sheet의 Total Man-Day와 다릅니다."]
[null,232,null,"Error! Cause may be one of the following.\\n * File is invalid(e.g. the XLGantt file corrupted)\\n * Not XLGantt file but General Excel file\\n\\n Please check the messages below for details.","작업 중 에러가 발생했습니다. 원인은 다음 중 하나일 수 있습니다.\\n - 파일이 비정상적인 경우(XLGantt파일이 손상된 경우 등)\\n - XLGantt 파일이 아닌 일반 엑셀파일인 경우\\n\\n 자세한 원인은 아래의 메시지를 확인하시기 바랍니다."]
[null,233,null,"Error, Invalid field specified.","오류, 지정할 수 없는 필드가 있습니다"]
[null,234,null,"Etc","기타"]
[null,235,null,"Excel","엑셀"]
[null,236,null,"Execution path of Program","프로그램 실행경로"]
[null,237,null,"Extension","확장자명"]
[null,238,null,"Filter","필터 적용"]
[null,239,null,"Filter Task","작업 필터"]
[null,240,null,"Finish","완료일"]
[null,241,null,"Finish Date","완료일자"]
[null,242,null,"Finish date field of a task. It must be in date format.","각 작업의 완료일(또는 종료일)을 표시합니다. 반드시 날짜 형식이어야 합니다."]
[null,243,null,"Finish date is invalid.","작업완료일의 날짜형식이 잘못되었습니다."]
[null,244,null,"Finish date is invalid. Verify row {} of the source file.","완료일자에 날짜가 아닌 값이 포함되어 있습니다. Import하는 파일의 {}행을 확인하세요."]
[null,245,null,"First day of week","한주의 시작요일"]
[null,246,null,"Follow the language setting of your computer O/S","컴퓨터 O/S의 언어설정을 따름"]
[null,247,null,"Fri","금"]
[null,248,null,"From (File to import )","Source파일(가져올 파일 )"]
[null,249,null,"From Date is invalid.","시작날짜 형식이 잘못되었습니다."]
[null,250,null,"Gantt Chart Display","Gantt chart표시 방법"]
[null,251,null,"Gantt Chart View Style","Gantt Chart 보기 형식"]
[null,252,null,"Gantt Chart Zoom Ratio","Gantt Chart 축소/확대 비율"]
[null,253,null,"General","일반"]
[null,254,null,"If the language in source file and the language in target file are different, you can not import.","가져오는 파일(소스파일)에 설정된 언어와 이 파일(타겟파일)에 설정된 언어가 다르면 Import할 수 없습니다."]
[null,255,null,"If you choose \"Assigning path by task name automatically\" option, you need to set the upper path.","작업명으로 하위 경로 자동지정을 선택한 경우에는 상위의 기본경로를 설정해야 합니다."]
[null,256,null,"If you do not enter the actual finish date of row number {1} in the {2} sheet, you can't enter \"%Work Complete\" as 100%.","{2} sheet의 {1}행의 실제시작일만 입력하고 실제완료일을 비워놓으면 완료율을 100%로 입력할 수 없습니다."]
[null,257,null,"Import","가져오기"]
[null,258,null,"Import common Excel file","일반 Excel 파일"]
[null,259,null,"Import data after clearing the existing data","기존Data 지우고 가져오기"]
[null,260,null,"Import Data without Clearing the Existing Data","기존Data 아래에 추가하기"]
[null,261,null,"Import files created in XLGantt","XLGantt로 작성된 파일 가져오기"]
[null,262,null,"Import new data into the Schedule sheet after clearing the exisint data","이 XLGantt파일에 있는 Data를 지우고 새로운 Data를 가져와서 \r\n붙여 넣기"]
[null,263,null,"Import new data into the Schedule sheet without clearing the existing  data","이 XLGantt파일에 있는 Data를 그대로 두고 맨 아래에 새로운 Data를 가져와서 붙여 넣기"]
[null,264,null,"Import Option","가져오기 옵션"]
[null,265,null,"Import success!\\nTotal rows of imported data : ","가져오기 작업이 정상적으로 완료되었습니다.\\n가져온 자료의 전체 행수 : "]
[null,266,null,"Import without clearing the existing data.","기존Data에 추가하기"]
[null,267,null,"Import Wizard","파일 가져오기"]
[null,268,null,"Importing..., Please wait...","자료를 가져옵니다. 잠시만 기다려주세요..."]
[null,269,null,"Included in the selection\\nlist when deliverables\\nnot specified","산출물명 비었을때\\n선택목록에 포함\\n여부"]
[null,270,null,"Indent Task","작업레벨 내림"]
[null,271,null,"Inside of the chart","Chart 내부"]
[null,272,null,"It recalculates duration and % Work Complete. Clicking the Save button will be the same."]
[null,273,null,"It's already chosen language.","이미 선택된 언어입니다."]
[null,274,null,"Job Results","작업결과"]
[null,275,null,"John","홍길동"]
[null,276,null,"Language","언어"]
[null,277,null,"Left of the chart","Chart 왼쪽"]
[null,278,null,"License","라이선스"]
[null,279,null,"Managing Schedule Changes","일정변경 관리함(시작일/완료일, 실제시작일/실제완료일 사용)"]
[null,280,null,"Man-Day","Man-Day"]
[null,281,null,"Man-Month","Man-Month"]
[null,282,null,"Map >>","Mapping >>"]
[null,283,null,"mm/dd/yyyy","yyyy/mm/dd"]
[null,284,null,"mmmm yyyy","yyyy년 m월"]
[null,285,null,"Mon","월"]
[null,286,null,"Monthly","월별"]
[null,287,null,"Monthly view","월별보기"]
[null,288,null,"Months","월별"]
[null,289,null,"Name of Nonworking Days","휴무일명"]
[null,290,null,"New Version","최신 버전"]
[null,291,null,"Next >>","다음 >>"]
[null,292,null,"No need to enter in the Calendar sheet","Calendar sheet에 입력할 필요 없음"]
[null,293,null,"No need to enter Saturdays and Sundays in the Calendar sheet","토요일,일요일은 Calendar sheet에 입력할 필요 없음"]
[null,294,null,"Nonworking Days","휴무일자"]
[null,295,null,"Not Completed(<>100%)","미완료"]
[null,296,null,"Not Managing Schedule Changes","일정변경 관리 안함(시작일/완료일만 사용)"]
[null,297,null,"Not Specified(Standard Calendar)","지정하지 않음(표준캘린더)"]
[null,298,null,"Note","비고"]
[null,299,null,"Of the first two rows, at least one has been deleted. Please retry after changing the sheet to its previous state.","1~2행 중 한 행이 삭제되었습니다. 원래대로 복구한 후 작업하십시오."]
[null,300,null,"Once you choose \"Display the task name in the same field\" option, you should select a WBS No. or a WBS Level field.","\"같은 필드에 작업명 표시\" 옵션을 선택했으면 WBS No. 또는 개요수준(WBS Level) 필드 중 하나는 선택되어야 합니다"]
[null,301,null,"Only Saturdays and Sundays","토요일,일요일만"]
[null,302,null,"Only the dates entered in the Calendar sheet","Calendar sheet에 입력된 날짜만"]
[null,303,null,"Open Deliverables","산출물 열기"]
[null,304,null,"Open Deliverables Folder","산출물 폴더 열기"]
[null,305,null,"Options","옵션"]
[null,306,null,"Outdent Task","작업레벨 올림"]
[null,307,null,"Outline Level","개요수준"]
[null,308,null,"Percent ","퍼센트 지정"]
[null,309,null,"Performed Work(C)\\nMan-day","진척작업량( C )\\nMan-day"]
[null,310,null,"Performed workload on planned schedule","계획일정대비 진행된 작업량"]
[null,311,null,"Performed workload on planned schedule when managing schedule changes(Total Duration x %Work Complete)","일정변경관리 할때 계획일정대비 진행된 작업량(총기간 x 총실적진행율)"]
[null,312,null,"Pick a Date","날짜 선택"]
[null,313,"manual input","Plan","계획"]
[null,314,null,"Planned %Work Complete calculation base date","계획진척율 계산 기준일자"]
[null,315,null,"Planned %Work Complete from the start date to the current date","현재날짜까지 계획된 진척율, WBS의 \"계획진척율\"의 전체 합계 진척율을 표시함"]
[null,316,null,"Planned %Work Complete(A)","계획 진척율(A)"]
[null,317,null,"Planned %Work Complete(B/A)","계획(B/A)"]
[null,318,null,"Planned Progress","계획진척율"]
[null,319,null,"Planned Project Progresses by Weeks","계획진척율(주별)"]
[null,320,null,"Planned Work(B)\\nMan-day","계획작업량(B)\\nMan-day"]
[null,321,null,"Planned Work\\n(ManDay to Today)","계획 작업량\r\n(현재일까지ManDay,\r\n가중치 감안)"]
[null,322,null,"Planned workload","현재일까지 계획된 작업량"]
[null,323,null,"Planned workload from the start date to the current date","해당작업의 시작일부터 현재일까지의 작업기간을 의미함(현재 날짜까지 진행되었어야 할 기간)"]
[null,324,"for import columun","Planned__%Work Complete","계획"]
[null,325,"for import columun","Planned__Duration","계획__기간"]
[null,326,"for import columun","Planned__Work","계획__작업량"]
[null,327,null,"Planned\\n%Work Complete","계획"]
[null,328,null,"Planned\\nDuration","계획\\n기간"]
[null,329,null,"Planned\\nWork","계획\\n작업량"]
[null,330,null,"Please choose a type of the task field.","작업필드의 유형을 선택하세요."]
[null,331,null,"Please enter the extension.","확장자명을 입력하세요."]
[null,332,null,"Please enter the path where deliverables are saved.","산출물이 저장될 특정경로를 입력하세요."]
[null,333,null,"Please enter the program execution path.","프로그램 실행경로를 입력하세요."]
[null,334,null,"Please set project calendars in this sheet.","이 Sheet에서 프로젝트 Calendar를 설정하세요."]
[null,335,null,"Positive - ahead of schedule, Negative - behind schedule","양수이면 계획보다 빨리 진행, 음수이면 지연"]
[null,336,null,"Powerpoint","파워포인트"]
[null,337,null,"Program Info","프로그램 정보"]
[null,338,null,"Program Name","프로그램명"]
[null,339,null,"Program Site","프로그램 사이트"]
[null,340,null,"Progress","진척율"]
[null,341,null,"Progresses by Resources","담당별 진행율"]
[null,342,null,"Project Execution Plan","프로젝트수행계획서"]
[null,343,null,"Project Information","프로젝트 정보"]
[null,344,null,"Project Name","프로젝트명"]
[null,345,null,"Project Progress - When managing schedule changes","프로젝트 진행율 - 일정변경 관리할때"]
[null,346,null,"Project Progress - When not managing schedule changes","프로젝트 진행율 - 일정변경 관리하지 않을때"]
[null,347,null,"Project Scheduler","Project Scheduler"]
[null,348,null,"Reformatting","서식재설정"]
[null,349,null,"Regardless of the language setting in computer O/S, you can choose a language directly","컴퓨터 O/S에 설정된 언어와 관계없이 사용자가 표시할 언어를 직접 선택할 수 \r\n있습니다."]
[null,350,null,"Release Date","릴리즈 일자"]
[null,351,null,"Resource field.","자원 필드입니다. 담당자, 리소스 등의 이름으로 불리기도 합니다. 해당 작업의 담당자를 표시합니다"]
[null,352,null,"Resources","담당"]
[null,353,null,"Right of the chart","Chart 오른쪽"]
[null,354,null,"Rows of imported data : ","가져온 자료의 행수 : "]
[null,355,null,"Run \"Update Schedule\"  When Saving XLGantt File","File저장시 WBS Update실행"]
[null,356,null,"Sat","토"]
[null,357,null,"Save","저장"]
[null,358,null,"Schedule Change Management","일정계획 변경관리"]
[null,359,null,"Schedule update has been completed.","스케줄업데이트 작업이 완료되었습니다."]
[null,360,null,"Schedule Variance(B-A)","차이(B-A)"]
[null,361,null,"Search for the tasks based on criteria."]
[null,362,null,"Select source files(Muliple Select)","가져올 파일을 선택하세요(다중선택가능)"]
[null,363,null,"Set \"the earlist start date and the lastest fisnish date of the tasks\" to the Project Start-Finish date.","Task의 가장 빠른 시작일과 가장 늦은 완료일을 프로젝트 기간으로 자동설정"]
[null,364,null,"Set path by the task name automatically\\n(in this case, specify the upper path of automatically assigned path) ","작업명으로 경로 자동지정(이 경우 자동지정된 경로의 상위경로를 입력) "]
[null,365,null,"Set program execution paths to open deliverables","산출물열기 프로그램 실행경로 지정"]
[null,366,null,"Set saving path of deliverables","산출물 저장경로"]
[null,367,null,"Settings","설정"]
[null,368,null,"Specific Date","특정날짜"]
[null,369,null,"Specific path","특정 경로"]
[null,370,null,"Standard Calendar","표준캘린더"]
[null,371,null,"Star(*) marks-required fields, orange columns-automatically calculated","별(*)표시는 필수입력, 주황색열은 자동계산"]
[null,372,null,"Start","시작일"]
[null,373,null,"Start Date","시작일자"]
[null,374,null,"Start date field of a task. It must be in date format.","각 작업의 시작일을 표시합니다. 반드시 날짜 형식이어야 합니다."]
[null,375,null,"Start date is invalid.","작업시작일의 날짜형식이 잘못되었습니다."]
[null,376,null,"Start date is invalid. Verify row {} of the source file.","시작일자에 날짜가 아닌 값이 포함되어 있습니다. Import하는 파일의 {}행을 확인하세요."]
[null,377,null,"Start-Finish","시작일-완료일"]
[null,378,null,"Sun","일"]
[null,379,null,"Task","작업"]
[null,380,null,"Task area was not selected. Please select a task area.","작업영역이 선택되지 않았습니다. 영역을 선택하세요."]
[null,381,null,"Task Name","작업명"]
[null,382,null,"Task name field.It's also referred to as \"Work\" or \"Activity\" or etc.","작업명 필드입니다. 이름, Task, Activity등 다른 이름으로 불리기도 합니다. 작업의 Level에 따라 표시하는 방식이 다를 수 있습니다. Level별로 다른 필드에 작업명이 표시되는 경우에는 1 Level 필드만 Traget파일의 \"작업명\"필드와 Mapping하면 됩니다."]
[null,383,null,"Task(Task name or Name) is missing.","Task(작업명, 이름 등)는 반드시 입력되어야 합니다."]
[null,384,null,"The \"%Work Complete\" column has been deleted. Please retry after changing the sheet to its previous state.","실적진척율 열이 삭제되었습니다. 원래대로 복구한 후 작업하세요."]
[null,385,null,"The \"%Work Complete\" of row number {1} in the {2} sheet is not a number.","{2} sheet의 {1}행의 실적진척율이 숫자가 아닙니다."]
[null,386,null,"The \"Actual Finish Date\" column has been deleted. Please retry after changing the sheet to its previous state.","실제완료일 열이 삭제되었습니다. 원래대로 복구한 후 작업하세요."]
[null,387,null,"The \"Actual Start Date\" column has been deleted. Please retry after changing the sheet to its previous state.","실제시작일 열이 삭제되었습니다. 원래대로 복구한 후 작업하세요."]
[null,388,null,"The \"Actual Total Duration\" column has been deleted. Please retry after changing the sheet to its previous state.","실제총기간 열이 삭제되었습니다. 원래대로 복구한 후 작업하세요."]
[null,389,null,"The \"Actual Total Work\" column has been deleted. Please retry after changing the sheet to its previous state.","실제총작업량 열이 삭제되었습니다. 원래대로 복구한 후 작업하세요."]
[null,390,null,"The \"Calendar\" column has been deleted. Please retry after changing the sheet to its previous state.","Calendar 열이 삭제되었습니다. 원래대로 복구한 후 작업하세요."]
[null,391,null,"The \"Deliverables\" column has been deleted. Please retry after changing the sheet to its previous state.","산출물 열이 삭제되었습니다. 원래대로 복구한 후 작업하세요."]
[null,392,null,"The \"Finish Date\" column has been deleted. Please retry after changing the sheet to its previous state.","완료일 열이 삭제되었습니다. 원래대로 복구한 후 작업하세요."]
[null,393,null,"The \"Note\" column has been deleted. Please retry after changing the sheet to its previous state.","비고 열이 삭제되었습니다. 원래대로 복구한 후 작업하세요."]
[null,394,null,"The \"Planned %Work Complete\" column has been deleted. Please retry after changing the sheet to its previous state.","계획진척율 열이 삭제되었습니다. 원래대로 복구한 후 작업하세요."]
[null,395,null,"The \"Planned Duration\" column has been deleted. Please retry after changing the sheet to its previous state.","계획기간 열이 삭제되었습니다. 원래대로 복구한 후 작업하세요."]
[null,396,null,"The \"Planned Work\" column has been deleted. Please retry after changing the sheet to its previous state.","계획작업량 열이 삭제되었습니다. 원래대로 복구한 후 작업하세요."]
[null,397,null,"The \"Resources\" column has been deleted. Please retry after changing the sheet to its previous state.","담당 열이 삭제되었습니다. 원래대로 복구한 후 작업하세요."]
[null,398,null,"The \"Start Date\" column has been deleted. Please retry after changing the sheet to its previous state.","시작일 열이 삭제되었습니다. 원래대로 복구한 후 작업하세요."]
[null,399,null,"The \"Task\" column has been deleted. Please retry after changing the sheet to its previous state.","작업 열이 삭제되었습니다. 원래대로 복구한 후 작업하세요."]
[null,400,null,"The \"Total Duration\" column has been deleted. Please retry after changing the sheet to its previous state.","총기간 열이 삭제되었습니다. 원래대로 복구한 후 작업하세요."]
[null,401,null,"The \"Total Work\" column has been deleted. Please retry after changing the sheet to its previous state.","총작업량 열이 삭제되었습니다. 원래대로 복구한 후 작업하세요."]
[null,402,null,"The \"WBS Level\" column has been deleted. Please retry after changing the sheet to its previous state.","WBS Level 열이 삭제되었습니다. 원래대로 복구한 후 작업하세요."]
[null,403,null,"The \"WBS\" column has been deleted. Please retry after changing the sheet to its previous state.","WBS 열이 삭제되었습니다. 원래대로 복구한 후 작업하세요."]
[null,404,null,"The \"Weight\" column has been deleted. Please retry after changing the sheet to its previous state.","가중치 열이 삭제되었습니다. 원래대로 복구한 후 작업하세요."]
[null,405,null,"The {} sheet does not exist. Please check that you changed or deleted the sheet.","{} sheet가 존재하지 않습니다. 이름을 변경하거나 삭제했는지 확인하세요."]
[null,406,null,"The {} sheet does not exist. Please check that you have changed or deleted the sheet.","{} sheet가 존재하지 않습니다. 이름을 변경하거나 삭제했는지 확인하세요."]
[null,407,null,"The actual finish date format of row number {1} in the {2} sheet is invalid.","{2} sheet의 {1}행의 실제완료일이 날짜형식이 아닙니다. 정확한 날짜형식으로 입력하세요."]
[null,408,null,"The actual finish date of the row number {1} in the {2} sheet was entered, but the actual start date is empty.","{2} sheet의 {1}행의 실제시작일이 비어있고 실제완료일만 입력되어 있습니다."]
[null,409,null,"The actual start date format of row number {1} in the {2} sheet is invalid.","{2} sheet의 {1}행의 실제시작일이 날짜형식이 아닙니다. 정확한 날짜형식으로 입력하세요."]
[null,410,null,"The actual start date of row number {1} in the {2} sheet is later than the actual finish date.","{2} sheet의 {1}행의 실제시작일이 실제완료일보다 큽니다."]
[null,411,null,"The actual start date of row number {1} in the {2} sheet is out of the project duration.","{2} sheet의 {1}행의 실제 시작일이 프로젝트 기간을 벗어났습니다."]
[null,412,null,"The actual start or finish date of row number {1} in the {2} sheet is out of the project duration.","{2} sheet의 {1}행의 실젝 시작일 또는 완료일이 프로젝트 기간을 벗어났습니다."]
[null,413,null,"The count of level","Level의 갯수"]
[null,414,null,"The date field of row number {1} in the {2} sheet was entered, but the task field is empty.\\nEnter a value in the task field or clear the date field.","{2} sheet의 {1}행의 날짜는 입력되었는데 작업필드가 비어있습니다.\\n작업필드의 값을 채우거나 날짜를 지우세요."]
[null,415,null,"The deliverables name is empty.","산출물명이 비어있습니다."]
[null,416,null,"The earliest start date({1}) of the tasks is earlier than the start date({2}) of the project.\\n\\nIn this case, there may be problems with resource calculations. Please change the start date to valid date.","가장 빠른 시작일({1})이 프로젝트 기간정보의 시작일({2})보다 더 빠릅니다.\\n\\n이 경우 리소스 계산등에 문제가 있을 수 있습니다. 시작일을 환경설정메뉴의 프로젝트 기간내로 조정하거나 프로젝트 기간을 조정하시기 바랍니다."]
[null,417,null,"The finish date format of row number {1} in the {2} sheet is invalid.","{2} sheet의 {1}행의 완료일이 날짜형식이 아닙니다. 정확한 날짜형식으로 입력하세요."]
[null,418,null,"The first column of Gantt area has been deleted. Please retry after changing the sheet to its previous state.","Gantt영역의 첫번째 열이 삭제되었습니다. 원래대로 복구한 후 작업하세요."]
[null,419,null,"The following file formats are not supported. You can import files with version 0.9.7 or higher than 0.9.7.","다음 파일은 지원하지 않는 형식입니다. XLGantt Version 0.9.7 이상 버전만 지원합니다."]
[null,420,null,"The following file formats are not supported. You can import the files if the version is 0.9.7 or higher than 0.9.7.","다음의 XLGantt파일은 지원하지 않는 버전입니다. Version 0.9.7 이상 버전만 지원합니다."]
[null,421,null,"The following files have been successfully imported.","다음 파일을 성공적으로 가져왔습니다."]
[null,422,null,"The following folder does not exist.","다음의 폴더가 존재하지 않습니다."]
[null,423,null,"The format of \"Calculation Base Date of Planned %Work Complete\" is invalid.","계획진척율 계산 기준일자의 날짜형식이 잘못되었습니다."]
[null,424,null,"The format of the project finish date is invalid.","프로젝트 완료일의 날짜형식이 잘못되었습니다."]
[null,425,null,"The format of the project start date is invalid.","프로젝트 시작일의 날짜형식이 잘못되었습니다."]
[null,426,null,"The job was not completed successfully.","작업이 정상적으로 완료되지 않았습니다."]
[null,427,null,"The kind of period is invalid. You must enter one of the M(Months) or W(Weeks)","기간의 종류가 잘못되었습니다. W(주), M(월) 중에 하나를 입력해야 합니다"]
[null,428,"manual input","The language setting has been changed.\\nPress the OK button to start translation. \\nIt may take a long time to translate.\\nHowever, translation of Ribbon menu and Popup menu takes effect after reopening this XLGantt file.","언어설정이 변경되었습니다.\\n확인버튼을 누르면 번역을 시작합니다. 번역은 시간이 걸릴 수 있습니다. \\n리본메뉴, 팝업메뉴의 언어는 이 XLGantt파일을 닫은 후 새로 열어야 번역이 적용됩니다."]
[null,429,null,"The latest finish date({1}) of the tasks is later than the finish date({2}) of the project.\\n\\nIn this case, there may be problems with resource calculations. Please change the finish date to valid date.","가장 늦은 완료일({1})이 프로젝트 기간정보의 완료일({2})보다 더 늦습니다.\\n\\n이 경우 리소스 계산등에 문제가 있을 수 있습니다. 완료일을 환경설정메뉴의 프로젝트 기간내로 조정하거나 프로젝트 기간을 조정하시기 바랍니다."]
[null,430,null,"The level of row {} is invalid.","{} 행의 Level이 맞지 않습니다. Level을 1보다 크게 증가했는지 확인하세요."]
[null,431,null,"The number of Level must be less than or equal to {}","Level의 갯수는 {}개까지만 가능합니다."]
[null,432,null,"The number of Level must be positive integer.","Level의 갯수는 양의 정수만 가능합니다."]
[null,433,null,"The number of task columns is not 7. Please retry after changing the sheet to its previous state.","Task열의 갯수가 7개가 아닙니다. 원래대로 복구한 후 작업하세요."]
[null,434,null,"The process was terminated due to the {} sheet error.","{} sheet의 에러로 인해 작업이 중단되었습니다."]
[null,435,null,"The project finish date({}) you entered is not valid date format.","입력한 프로젝트 기간의 완료일({})이 날짜형식이 아닙니다."]
[null,436,null,"The project start date({}) you entered is not valid date format.","입력한 프로젝트 기간의 시작일({})이 날짜형식이 아닙니다"]
[null,437,null,"The start date format of row number {1} in the {2} sheet is invalid.","{2} sheet의 {1}행의 시작일이 날짜형식이 아닙니다. 정확한 날짜형식으로 입력하세요."]
[null,438,null,"The start date is later than the finish date.","시작일이 완료일보다 큽니다."]
[null,439,null,"The start date of row number {1} in the {2} sheet is later than the finish date.","{2} sheet의 {1}행의 시작일이 완료일보다 큽니다."]
[null,440,null,"The start or finish date of row number {1} in the {2} sheet is out of the project duration.","{2} sheet의 {1}행의 시작일 또는 완료일이 프로젝트 기간을 벗어났습니다."]
[null,441,null,"The task of the first row of the {} sheet is not level 1.","{} sheet 첫행의 작업이 1 Level이 아닙니다. 첫행의 작업이 첫째칸이 아닌 다른 칸에 입력되었는지 확인하세요."]
[null,442,null,"The type of task fields","Task필드 유형"]
[null,443,null,"The weight of row number {1} in the {2} sheet is not a number.","{2} sheet의 {1}행의 가중치가 숫자가 아닙니다."]
[null,444,null,"There are no executable programs that open the deliverables.","입력한 산출물을 열 수 있는 실행프로그램이 없습니다."]
[null,445,null,"There is an error in the total workload or planned workload field of row number {1} in the {2} sheet. Please check that the start / finish date was entered correctly, or that the formula is correct.","{2} sheet의 {1}행의 총작업량 또는계획작업량 필드에 오류가 있습니다. 시작일/완료일이 잘못 입력되었는지 또는 수식에 문제가 없는지 확인하세요."]
[null,446,null,"There is no data in the following files","다음 파일에 자료가 없습니다."]
[null,447,null,"There is no input data","입력된 자료가 없습니다"]
[null,448,null,"There is no input data that will be calculated.","계산할 입력자료가 없습니다."]
[null,449,null,"There is no input data.","입력된 자료가 없습니다."]
[null,450,null,"There is no input data. Please enter after reformatting.","입력된 자료가 없습니다. 입력 후 서식재설정 해 주세요."]
[null,451,null,"There was an error in \"Progress Line\" drawing. This can happen if the actual start date or actual finish date is beyond the project period. Check the message below.","진척율선 그리기 작업 중 에러가 발생했습니다. 실제시작일 또는 실제완료일이 프로젝트 기간을 벗어난 경우에 발생할 수 있습니다. 아래의 메시지를 확인하십시오."]
[null,452,null,"This area can not be selected. Please select an area that contains tasks.","선택할 수 없는 영역입니다. 작업명이 입력된 행을 선택하세요."]
[null,453,null,"This Month only","이번 달 작업만 조회"]
[null,454,null,"This Week only","이번 주 작업만 조회"]
[null,455,null,"This XLGantt is not the latest version. Download the latest version from the following site.","지금 사용하고 계신 XLGantt는 최신버전이 아닙니다.\\n\r\n최신버전을 아래의 사이트에서 다운로드 받으세요."]
[null,456,null,"Thu","목"]
[null,457,null,"Time bucket type is invalid.","Time bucket type 오류입니다."]
[null,458,null,"To (XLGantt)","Target파일(가져온 후 파일)"]
[null,459,null,"To Date is invalid.","끝날짜 형식이 잘못되었습니다."]
[null,460,null,"To import files from source to the target file, map the respective fields.\\nSelect a field in source file first and then find a corresponding field in the target file.","Source파일에서 Target파일로 가져오기 위해서 각각의 필드를 Mapping합니다. \r\nSource파일의 필드를 먼저 선택하고 해당되는 필드를 Targe파일에서 찾아서 Mapping합니다."]
[null,461,null,"Today","오늘"]
[null,462,null,"Today only","오늘 작업만 조회"]
[null,463,null,"Total Work(A)\\nMan-day","총작업량(A)\\nMan-day"]
[null,464,null,"Total Work\\n(Total ManDay)","총 작업량\r\n(총ManDay,\r\n가중치 감안)"]
[null,465,null,"Total workload of the project","프로젝트 전체 작업량"]
[null,466,"for import columun","Total__Duration","총__기간"]
[null,467,"for import columun","Total__Work","총__작업량"]
[null,468,null,"Total\\nDuration","총\\n기간"]
[null,469,null,"Total\\nWork","총\\n작업량"]
[null,470,null,"Tue","화"]
[null,471,null,"Type a number between 0% and 100% in \"%Work Complete\" field of row number {1} in the {2} sheet.","{2} sheet의 {1}행의 실적진척율을 0~100% 범위로 입력해주세요."]
[null,472,null,"UI Design","화면설계"]
[null,473,null,"Unable to open file. Please change the \"Check if you save deliverables in specific directory\" option to the checked state in the Setting>Deliverables tab.","파일을 열수 없습니다. 환경설정>산출물관리 탭에서 \"산출물 관리를 할 경우에 체크하세요\" 옵션을 체크상태로 변경해 주세요."]
[null,474,null,"Update Schedule","스케줄업데이트"]
[null,475,null,"Updates","업데이트 내용"]
[null,476,null,"Updating schedule... \\nplease wait...","스케줄업데이트 중입니다...\\n잠시만 기다려 주세요..."]
[null,477,null,"User Defined Calendar 1","사용자정의 캘린더1"]
[null,478,null,"User Defined Calendar 2","사용자정의 캘린더2"]
[null,479,null,"Variance(Actual-Planned)","차이(실적-계획)"]
[null,480,null,"WBS","WBS"]
[null,481,null,"WBS Area Display","WBS영역 표시방법"]
[null,482,null,"WBS Level is invalid. Enter a number only. Verify row {} of the source file.","WBS Level(개요번호)에 숫자가 아닌 값이 포함되어 있습니다. Import하는 파일의 {}행을 확인하세요."]
[null,483,null,"WBS No.","WBS No."]
[null,484,null,"WBS,Gantt Chart"]
[null,485,null,"Wed","수"]
[null,486,null,"Weekly","주별"]
[null,487,null,"Weekly view","주별보기"]
[null,488,null,"Weeks","주별"]
[null,489,null,"Weight","가중치"]
[null,490,null,"Weight is invalid.","가중치의 숫자형식이 잘못되었습니다."]
[null,491,null,"Weight must be greater than zero.","가중치는 0보다 커야 합니다."]
[null,492,null,"Word","워드"]
[null,493,null,"Workload\\n(Man-Day)"]
[null,494,null,"Workload\\n(Man-Month)"]
[null,495,null,"Workloads by {}","Workload현황({})"]
[null,496,null,"Workloads by Months","Workload(월별)"]
[null,497,null,"Workloads by Resouces","Workload(담당별)"]
[null,498,null,"Workloads by Weeks","Workload(주별)"]
[null,499,null,"Worloads by Resources","Workload(담당별)"]
[null,500,null,"Would you like to update the schedule before saving?","저장하기 전에 스케줄을 업데이트하시겠습니까?\\n\\n[스케줄업데이트]메뉴를 클릭할 때와 동일한 작업을 수행합니다."]
[null,501,null,"XLGantt Version Check","XLGantt Version Check"]
[null,502,null,"You are using the latest version of XLGantt.\\nCurrent Verison : {}","사용하고 계신 XLGantt는 최신 버전입니다.\\n현재 버전 : {}"]
[null,503,null,"You can add \"Outlook Appointments\" only on the {} sheet.","{} Sheet에서만 Outlook일정을 등록할 수 있습니다."]
[null,504,null,"You can add \"Outlook Tasks\" only on the {} sheet.","{} Sheet에서만 Outlook작업을 등록할 수 있습니다."]
[null,505,null,"You can edit task only on the {} sheet.","{} Sheet에서만 작업을 편집할 수 있습니다."]
[null,506,null,"You can indent or outdent tasks only on the {} sheet.","{} Sheet에서만 작업가능합니다."]
[null,507,null,"You can not add \"Outlook Appointments\" in the selected area.","선택한 위치에서는 작업할 수 없습니다."]
[null,508,null,"You can not add \"Outlook Tasks\" in the selected area.","선택한 위치에서는 Outlook작업을 등록할 수 없습니다."]
[null,509,null,"You can not add a column between column A and C because the range is reserved by XLGantt.","A열부터 C열까지는 XLGantt프로그램에서 사용하는 영역이므로 임의로 열을 추가할 수 없습니다."]
[null,510,null,"You can not edit a task in the selected area.","선택한 위치에서는 작업할 수 없습니다."]
[null,511,null,"You can not enter any more.","더 이상 입력불가"]
[null,512,null,"You can not indent any more!","더 이상 오른쪽으로 이동할 수 없습니다!"]
[null,513,null,"You can not indent or outdent the selected row.","선택한 위치에서는 이동할 수 없습니다."]
[null,514,null,"You can not outdent any more!","더 이상 왼쪽으로 이동할 수 없습니다!"]
[null,515,null,"You can not use \"Microsoft Outlook\". \\nMake sure you properly installed it.","Microsoft Outlook을 사용할 수 없습니다.\\n정상적으로 설치되어 있는지 확인하세요."]
[null,516,null,"You can open deliverables only on the {} Sheet.","{} Sheet에서만 작업가능합니다."]
[null,517,null,"You can use only start and finish dates. So you can not manage schedule changes.","일정을 관리할 때 작업 시작일/완료일만 사용합니다. 변경된 일정은 관리하지 않습니다. 일정이 변경되었을 때는 시작일과 완료일을 변경합니다.  "]
[null,518,null,"You can use start and finish dates, actual start and finish dates. You can identify the schedule is delayed or aheaded by entering actual start and finish dates. ","일정을 관리할 때 작업 시작일/완료일, 실제시작일/실제완료일을 사용합니다. 실제 시작된 날짜와 실제 완료된 날짜를 입력하여 일정이 지연되었거나 빨리 진행된 것을 관리할 수 있습니다.  "]
[null,519,null,"You can't choose a field that is empty.","필드명이 비어있는 항목은 선택할 수 없습니다."]
[null,520,null,"You can't import an Excel Macro file. Please import after saving it as an xls or xlsx file. If it is an XLGantt file, you can import it at the menu \"Import files created in XLGantt\"","엑셀매크로 파일은 가져오기를 할 수 없습니다. xls 또는 xlsx파일로 저장하여 작업하시기 바랍니다. 만약 XLGantt파일인 경우에는 \"XLGantt로 작성된 파일 가져오기\"에서 작업 가능합니다"]
[null,521,null,"You can't remove the default languages(English and Korean).","기본언어인 English와 Korean은 삭제할 수 없습니다."]
[null,522,null,"You didn't choose a language.","언어가 선택되지 않았습니다."]
[null,523,null,"You didn't choose a source field.","Source항목이 선택되지 않았습니다."]
[null,524,null,"You didn't choose a target field.","Target항목이 선택되지 않았습니다."]
[null,525,null,"You didn't choose an unmap item.","Mapping취소항목이 선택되지 않았습니다."]
[null,526,null,"You selected {} areas. Please select only one area.","한곳만 선택하세요. 현재 {}곳이 선택되었습니다."]
[null,527,null,"Group rows","작업을 그룹으로 묶기"]

{"sheet":"Workload","index":2,"n_rows":121,"n_cols":8,"rows_kept":121,"cut":false,"hidden":true,"merged":[]}
["wbs","task","resource","start","finish","timebucket_start","timebucket_finish","workload"]
["1.1.1","프로젝트 착수","홍길동","2018-10-02","2018-10-03","2018-10-02","2018-10-06",1]
["1.1.2.1","프로젝트 계획 수립","홍길동","2018-10-06","2018-10-12","2018-10-02","2018-10-06",0]
["1.1.2.1","프로젝트 계획 수립","김길동","2018-10-06","2018-10-12","2018-10-02","2018-10-06",0]
["1.1.2.1","프로젝트 계획 수립","이길동","2018-10-06","2018-10-12","2018-10-02","2018-10-06",0]
["1.1.2.1","프로젝트 계획 수립","홍길동","2018-10-06","2018-10-12","2018-10-07","2018-10-13",1.3333333333333333]
["1.1.2.1","프로젝트 계획 수립","김길동","2018-10-06","2018-10-12","2018-10-07","2018-10-13",1.3333333333333333]
["1.1.2.1","프로젝트 계획 수립","이길동","2018-10-06","2018-10-12","2018-10-07","2018-10-13",1.3333333333333333]
["1.1.2.2","착수보고(Kick off)","홍길동","2018-10-24","2018-10-24","2018-10-21","2018-10-27",1]
["1.2.1","월간보고1","김길동","2018-10-27","2018-10-31","2018-10-21","2018-10-27",0]
["1.2.1","월간보고1","김길동","2018-10-27","2018-10-31","2018-10-28","2018-11-03",3]
["1.2.2","월간보고2","김길동","2018-11-28","2018-11-28","2018-11-25","2018-12-01",1]
["1.2.3","월간보고3","[담당자미지정]","2019-01-03","2019-01-28","2018-12-30","2019-01-05",2]
["1.2.3","월간보고3","[담당자미지정]","2019-01-03","2019-01-28","2019-01-06","2019-01-12",5]
["1.2.3","월간보고3","[담당자미지정]","2019-01-03","2019-01-28","2019-01-13","2019-01-19",5]
["1.2.3","월간보고3","[담당자미지정]","2019-01-03","2019-01-28","2019-01-20","2019-01-26",5]
["1.2.3","월간보고3","[담당자미지정]","2019-01-03","2019-01-28","2019-01-27","2019-02-02",1]
["1.2.4","중간보고","[담당자미지정]","2018-10-24","2018-10-24","2018-10-21","2018-10-27",1]
["1.3.1","종료계획수립","홍길동","2019-02-05","2019-02-09","2019-02-03","2019-02-09",2]
["1.3.2","시스템 인수인계","홍길동","2019-02-12","2019-03-02","2019-02-10","2019-02-16",4]
["1.3.2","시스템 인수인계","홍길동","2019-02-12","2019-03-02","2019-02-17","2019-02-23",5]
["1.3.2","시스템 인수인계","홍길동","2019-02-12","2019-03-02","2019-02-24","2019-03-02",4]
["1.3.3","종료보고","홍길동","2019-03-02","2019-03-02","2019-02-24","2019-03-02",0]
["1.3.4","검수 및 종료","홍길동","2019-03-02","2019-03-02","2019-02-24","2019-03-02",0]
["2.1.1","요구사항정의","박길동","2018-10-06","2018-10-24","2018-10-02","2018-10-06",0]
["2.1.1","요구사항정의","정길동","2018-10-06","2018-10-24","2018-10-02","2018-10-06",0]
["2.1.1","요구사항정의","최길동","2018-10-06","2018-10-24","2018-10-02","2018-10-06",0]
["2.1.1","요구사항정의","박길동","2018-10-06","2018-10-24","2018-10-07","2018-10-13",1.3333333333333333]
["2.1.1","요구사항정의","정길동","2018-10-06","2018-10-24","2018-10-07","2018-10-13",1.3333333333333333]
["2.1.1","요구사항정의","최길동","2018-10-06","2018-10-24","2018-10-07","2018-10-13",1.3333333333333333]
["2.1.1","요구사항정의","박길동","2018-10-06","2018-10-24","2018-10-14","2018-10-20",1.6666666666666667]
["2.1.1","요구사항정의","정길동","2018-10-06","2018-10-24","2018-10-14","2018-10-20",1.6666666666666667]
["2.1.1","요구사항정의","최길동","2018-10-06","2018-10-24","2018-10-14","2018-10-20",1.6666666666666667]
["2.1.1","요구사항정의","박길동","2018-10-06","2018-10-24","2018-10-21","2018-10-27",1]
["2.1.1","요구사항정의","정길동","2018-10-06","2018-10-24","2018-10-21","2018-10-27",1]
["2.1.1","요구사항정의","최길동","2018-10-06","2018-10-24","2018-10-21","2018-10-27",1]
["2.1.2.1","프로세스모델링","정길동","2018-10-12","2018-10-23","2018-10-07","2018-10-13",1]
["2.1.2.1","프로세스모델링","정길동","2018-10-12","2018-10-23","2018-10-14","2018-10-20",5]
["2.1.2.1","프로세스모델링","정길동","2018-10-12","2018-10-23","2018-10-21","2018-10-27",2]
["2.1.2.2","데이터모델링","정길동","2018-10-12","2018-10-23","2018-10-07","2018-10-13",1]
["2.1.2.2","데이터모델링","정길동","2018-10-12","2018-10-23","2018-10-14","2018-10-20",5]
["2.1.2.2","데이터모델링","정길동","2018-10-12","2018-10-23","2018-10-21","2018-10-27",2]
["2.2.1","UI 설계","유아인","2018-10-26","2018-11-13","2018-10-21","2018-10-27",1]
["2.2.1","UI 설계","유아인","2018-10-26","2018-11-13","2018-10-28","2018-11-03",5]
["2.2.1","UI 설계","유아인","2018-10-26","2018-11-13","2018-11-04","2018-11-10",5]
["2.2.1","UI 설계","유아인","2018-10-26","2018-11-13","2018-11-11","2018-11-17",2]
["2.2.2.1","Architecture설계","김아키","2018-11-02","2018-11-13","2018-10-28","2018-11-03",1]
["2.2.2.1","Architecture설계","김아키","2018-11-02","2018-11-13","2018-11-04","2018-11-10",5]
["2.2.2.1","Architecture설계","김아키","2018-11-02","2018-11-13","2018-11-11","2018-11-17",2]
["2.2.2.2","데이터베이스설계","김디비","2018-11-09","2018-11-20","2018-11-04","2018-11-10",1]
["2.2.2.2","데이터베이스설계","김디비","2018-11-09","2018-11-20","2018-11-11","2018-11-17",5]
["2.2.2.2","데이터베이스설계","김디비","2018-11-09","2018-11-20","2018-11-18","2018-11-24",2]
["2.2.2.3","프로그램설계","김프로","2018-11-09","2018-11-27","2018-11-04","2018-11-10",1]
["2.2.2.3","프로그램설계","김프로","2018-11-09","2018-11-27","2018-11-11","2018-11-17",5]
["2.2.2.3","프로그램설계","김프로","2018-11-09","2018-11-27","2018-11-18","2018-11-24",5]
["2.2.2.3","프로그램설계","김프로","2018-11-09","2018-11-27","2018-11-25","2018-12-01",2]
["2.2.3","테스트 설계","김프로","2018-11-30","2018-12-04","2018-11-25","2018-12-01",1]
["2.2.3","테스트 설계","김프로","2018-11-30","2018-12-04","2018-12-02","2018-12-08",2]
["2.3.1.1","단위테스트시나리오작성","김프로","2018-11-30","2018-12-04","2018-11-25","2018-12-01",1]
["2.3.1.1","단위테스트시나리오작성","김프로","2018-11-30","2018-12-04","2018-12-02","2018-12-08",2]
["2.3.1.2.1.1","프로그램A","이개발","2018-11-30","2018-12-04","2018-11-25","2018-12-01",1]
["2.3.1.2.1.1","프로그램A","이개발","2018-11-30","2018-12-04","2018-12-02","2018-12-08",2]
["2.3.1.2.1.2","프로그램B","박개발","2018-12-07","2018-12-11","2018-12-02","2018-12-08",1]
["2.3.1.2.1.2","프로그램B","박개발","2018-12-07","2018-12-11","2018-12-09","2018-12-15",2]
["2.3.1.2.1.3","프로그램C","박개발","2018-12-07","2018-12-18","2018-12-02","2018-12-08",1]
["2.3.1.2.1.3","프로그램C","박개발","2018-12-07","2018-12-18","2018-12-09","2018-12-15",5]
["2.3.1.2.1.3","프로그램C","박개발","2018-12-07","2018-12-18","2018-12-16","2018-12-22",2]
["2.3.1.2.2","모듈B","이개발","2018-11-30","2019-01-28","2018-11-25","2018-12-01",0.5]
["2.3.1.2.2","모듈B","박개발","2018-11-30","2019-01-28","2018-11-25","2018-12-01",0.5]
["2.3.1.2.2","모듈B","이개발","2018-11-30","2019-01-28","2018-12-02","2018-12-08",2.5]
["2.3.1.2.2","모듈B","박개발","2018-11-30","2019-01-28","2018-12-02","2018-12-08",2.5]
["2.3.1.2.2","모듈B","이개발","2018-11-30","2019-01-28","2018-12-09","2018-12-15",2.5]
["2.3.1.2.2","모듈B","박개발","2018-11-30","2019-01-28","2018-12-09","2018-12-15",2.5]
["2.3.1.2.2","모듈B","이개발","2018-11-30","2019-01-28","2018-12-16","2018-12-22",2.5]
["2.3.1.2.2","모듈B","박개발","2018-11-30","2019-01-28","2018-12-16","2018-12-22",2.5]
["2.3.1.2.2","모듈B","이개발","2018-11-30","2019-01-28","2018-12-23","2018-12-29",2]
["2.3.1.2.2","모듈B","박개발","2018-11-30","2019-01-28","2018-12-23","2018-12-29",2]
["2.3.1.2.2","모듈B","이개발","2018-11-30","2019-01-28","2018-12-30","2019-01-05",2]
["2.3.1.2.2","모듈B","박개발","2018-11-30","2019-01-28","2018-12-30","2019-01-05",2]
["2.3.1.2.2","모듈B","이개발","2018-11-30","2019-01-28","2019-01-06","2019-01-12",2.5]
["2.3.1.2.2","모듈B","박개발","2018-11-30","2019-01-28","2019-01-06","2019-01-12",2.5]
["2.3.1.2.2","모듈B","이개발","2018-11-30","2019-01-28","2019-01-13","2019-01-19",2.5]
["2.3.1.2.2","모듈B","박개발","2018-11-30","2019-01-28","2019-01-13","2019-01-19",2.5]
["2.3.1.2.2","모듈B","이개발","2018-11-30","2019-01-28","2019-01-20","2019-01-26",2.5]
["2.3.1.2.2","모듈B","박개발","2018-11-30","2019-01-28","2019-01-20","2019-01-26",2.5]
["2.3.1.2.2","모듈B","이개발","2018-11-30","2019-01-28","2019-01-27","2019-02-02",0.5]
["2.3.1.2.2","모듈B","박개발","2018-11-30","2019-01-28","2019-01-27","2019-02-02",0.5]
["2.3.1.2.3","모듈C","이개발","2018-11-30","2019-01-28","2018-11-25","2018-12-01",1]
["2.3.1.2.3","모듈C","이개발","2018-11-30","2019-01-28","2018-12-02","2018-12-08",5]
["2.3.1.2.3","모듈C","이개발","2018-11-30","2019-01-28","2018-12-09","2018-12-15",5]
["2.3.1.2.3","모듈C","이개발","2018-11-30","2019-01-28","2018-12-16","2018-12-22",5]
["2.3.1.2.3","모듈C","이개발","2018-11-30","2019-01-28","2018-12-23","2018-12-29",4]
["2.3.1.2.3","모듈C","이개발","2018-11-30","2019-01-28","2018-12-30","2019-01-05",4]
["2.3.1.2.3","모듈C","이개발","2018-11-30","2019-01-28","2019-01-06","2019-01-12",5]
["2.3.1.2.3","모듈C","이개발","2018-11-30","2019-01-28","2019-01-13","2019-01-19",5]
["2.3.1.2.3","모듈C","이개발","2018-11-30","2019-01-28","2019-01-20","2019-01-26",5]
["2.3.1.2.3","모듈C","이개발","2018-11-30","2019-01-28","2019-01-27","2019-02-02",1]
["2.3.1.2.4","모듈D","박개발","2018-12-14","2019-01-28","2018-12-09","2018-12-15",1]
["2.3.1.2.4","모듈D","박개발","2018-12-14","2019-01-28","2018-12-16","2018-12-22",5]
["2.3.1.2.4","모듈D","박개발","2018-12-14","2019-01-28","2018-12-23","2018-12-29",4]
["2.3.1.2.4","모듈D","박개발","2018-12-14","2019-01-28","2018-12-30","2019-01-05",4]
["2.3.1.2.4","모듈D","박개발","2018-12-14","2019-01-28","2019-01-06","2019-01-12",5]
["2.3.1.2.4","모듈D","박개발","2018-12-14","2019-01-28","2019-01-13","2019-01-19",5]
["2.3.1.2.4","모듈D","박개발","2018-12-14","2019-01-28","2019-01-20","2019-01-26",5]
["2.3.1.2.4","모듈D","박개발","2018-12-14","2019-01-28","2019-01-27","2019-02-02",1]
["2.3.2.1","통합테스트실시","김프로","2019-01-11","2019-01-29","2019-01-06","2019-01-12",1]
["2.3.2.1","통합테스트실시","김프로","2019-01-11","2019-01-29","2019-01-13","2019-01-19",5]
["2.3.2.1","통합테스트실시","김프로","2019-01-11","2019-01-29","2019-01-20","2019-01-26",5]
["2.3.2.1","통합테스트실시","김프로","2019-01-11","2019-01-29","2019-01-27","2019-02-02",2]
["2.3.2.2","시스템테스트실시","김프로","2019-02-01","2019-02-05","2019-01-27","2019-02-02",1]
["2.3.2.2","시스템테스트실시","김프로","2019-02-01","2019-02-05","2019-02-03","2019-02-09",0]
["2.4.1.1","Release 및 Contingency plan수립","김프로","2019-02-01","2019-02-03","2019-01-27","2019-02-02",1]
["2.4.1.1","Release 및 Contingency plan수립","김프로","2019-02-01","2019-02-03","2019-02-03","2019-02-09",0]
["2.4.2.1","데이터베이스구축","김프로","2019-02-05","2019-02-07","2019-02-03","2019-02-09",0.5]
["2.4.2.1","데이터베이스구축","김디비","2019-02-05","2019-02-07","2019-02-03","2019-02-09",0.5]
["2.4.2.2","소프트웨어설치","김프로","2019-02-05","2019-02-07","2019-02-03","2019-02-09",0.5]
["2.4.2.2","소프트웨어설치","이개발","2019-02-05","2019-02-07","2019-02-03","2019-02-09",0.5]
["2.4.2.3","인수테스트실시","김프로","2019-02-05","2019-02-07","2019-02-03","2019-02-09",0.5]
["2.4.2.3","인수테스트실시","이개발","2019-02-05","2019-02-07","2019-02-03","2019-02-09",0.5]
["2.4.2.4","시스템오픈","김프로","2019-02-08","2019-02-08","2019-02-03","2019-02-09",1]
[null,null,null,null,null,null,"Total",{"$f":"SUM(H2:H120)","v":263}]

{"sheet":"Schedule","index":3,"n_rows":56,"n_cols":51,"rows_kept":56,"cut":false,"hidden":false,"merged":[[2,28,2,31],[0,28,0,78],[2,32,2,35],[2,36,2,39],[2,40,2,43],[2,44,2,47],[2,48,2,51],[2,0,3,0],[2,1,3,1],[2,2,3,2],[2,3,3,3],[2,4,3,10],[1,3,1,5],[2,11,3,11],[2,12,3,12],[2,13,3,13],[2,25,3,25],[2,14,3,14],[2,15,3,15],[2,16,3,16],[2,17,3,17],[2,18,3,18],[2,24,3,24],[2,27,3,27],[2,19,3,19],[2,20,3,20],[2,21,3,21],[2,22,3,22],[2,23,3,23],[2,26,3,26]]}
[null,null,null,{"$f":"xlgantt.ProjectName()","v":"OOO 프로젝트"},null,null,null,null,null,null,null,null,null,null,null,null,null,null,null,null,null,null,null,null,null,null,null,{"$f":"xlgantt.ProjectProgressString()","v":"2018-10-02~2019-03-02 [계획:100.00% 실적:8.32%]"},"  XLGantt 2.1.0 ⓒXLWorks"]
[null,null,null,null,null,null,null,null,null,null,null,null,null,null,null,null,null,null,null,null,null,null,null,null,null,null,null,{"$f":"xlgantt.CommentOnHeadArea()","v":"별(*)표시는 필수입력, 주황색열은 자동계산"},"  주별보기, Zoom 100%"]
["reserved","task_group","wbs_level","WBS","작업*",null,null,null,null,null,null,"비고","시작일*","완료일*","Calendar","총\r\n작업량","계획\r\n작업량","총\r\n기간","계획\r\n기간","실제\r\n시작일","실제\r\n완료일","실제\r\n총작업량","실제\r\n총기간","가중치","담당","산출물","계획","실적*","2018-09-30",null,null,null,"2018-10-28",null,null,null,"2018-11-25",null,null,null,"2018-12-23",null,null,null,"2019-01-20",null,null,null,"2019-02-17"]
[null,null,null,null,null,null,null,null,null,null,null,null,null,null,null,null,null,null,null,null,null,null,null,null,null,null,null,null,"2018-09-30","2018-10-07","2018-10-14","2018-10-21","2018-10-28","2018-11-04","2018-11-11","2018-11-18","2018-11-25","2018-12-02","2018-12-09","2018-12-16","2018-12-23","2018-12-30","2019-01-06","2019-01-13","2019-01-20","2019-01-27","2019-02-03","2019-02-10","2019-02-17","2019-02-24","2019-03-03"]
[null,"G",1,"1","프로젝트 관리",null,null,null,null,null,null,null,"2018-10-02","2019-03-02",null,44,44,101,101,null,null,0,0,null,null,null,1,0.11363636363636363,null,null,{"$f":"\"     \" & TEXT(AB5,\"#0.00%\") & \" \"","v":"     11.36% "},null,null,null,null,null,null,null,null,null,null,null,null,null,null,null,null,null,null,null,{"$f":"\"\" & \"프로젝트 관리\" & \" \" & IF(M5=\"\",\"\",TEXT(M5,\"M/D-\")) & IF(N5=\"\",\"\",TEXT(N5,\"M/D\")) & \" \"","v":"프로젝트 관리 10/2-3/2 "}]
[null,"G",2,"1.1",null,"프로젝트 착수 및 계획수립",null,null,null,null,null,null,"2018-10-02","2018-10-24",null,6,6,15,15,null,null,0,0,null,null,null,1,0.83333333333333337,null,null,null,{"$f":"\"\" & TEXT(AB6,\"#0.00%\") & \" \" & \"프로젝트 착수 및 계획수립\" & \" \" & IF(M6=\"\",\"\",TEXT(M6,\"M/D-\")) & IF(N6=\"\",\"\",TEXT(N6,\"M/D\")) & \" \"","v":"83.33% 프로젝트 착수 및 계획수립 10/2-10/24 "}]
[null,null,3,"1.1.1",null,null,"프로젝트 착수",null,null,null,null,null,"2018-10-02","2018-10-03",null,1,1,1,1,"2018-07-24","2018-07-25",2,2,1,"홍길동",null,1,1,{"$f":"\"    \" & TEXT(AB7,\"#0.00%\") & \" \" & \"프로젝트 착수\" & \"(홍길동)\" & \" \" & IF(M7=\"\",\"\",TEXT(M7,\"M/D-\")) & IF(N7=\"\",\"\",TEXT(N7,\"M/D\")) & \" \"","v":"    100.00% 프로젝트 착수(홍길동) 10/2-10/3 "}]
[null,"G",3,"1.1.2",null,null,"프로젝트 범위정의",null,null,null,null,null,"2018-10-06","2018-10-24",null,5,5,12,12,null,null,0,0,null,"홍길동,김길동,이길동",null,1,0.8,null,null,null,{"$f":"\"\" & TEXT(AB8,\"#0.00%\") & \" \" & \"프로젝트 범위정의\" & \"(홍길동,김길동,이길동)\" & \" \" & IF(M8=\"\",\"\",TEXT(M8,\"M/D-\")) & IF(N8=\"\",\"\",TEXT(N8,\"M/D\")) & \" \"","v":"80.00% 프로젝트 범위정의(홍길동,김길동,이길동) 10/6-10/24 "}]
[null,null,4,"1.1.2.1",null,null,null,"프로젝트 계획 수립",null,null,null,null,"2018-10-06","2018-10-12",null,4,4,4,4,"2018-07-28","2018-08-03",5,5,1,"홍길동,김길동,이길동","프로젝트수행계획서.pptx",1,1,null,{"$f":"\"      \" & TEXT(AB9,\"#0.00%\") & \" \" & \"프로젝트 계획 수립\" & \"(홍길동,김길동,이길동)\" & \" \" & IF(M9=\"\",\"\",TEXT(M9,\"M/D-\")) & IF(N9=\"\",\"\",TEXT(N9,\"M/D\")) & \" \"","v":"      100.00% 프로젝트 계획 수립(홍길동,김길동,이길동) 10/6-10/12 "}]
[null,null,4,"1.1.2.2",null,null,null,"착수보고(Kick off)",null,null,null,null,"2018-10-24","2018-10-24",null,1,1,1,1,null,null,null,0,1,"홍길동",null,1,0,null,null,null,{"$f":"\"   \" & TEXT(AB10,\"#0.00%\") & \" \" & \"착수보고(Kick off)\" & \"(홍길동)\" & \" \" & IF(M10=\"\",\"\",TEXT(M10,\"M/D-\")) & IF(N10=\"\",\"\",TEXT(N10,\"M/D\")) & \" \"","v":"   0.00% 착수보고(Kick off)(홍길동) 10/24-10/24 "}]
[null,"G",2,"1.2",null,"프로젝트 수행 및 통제",null,null,null,null,null,null,"2018-10-24","2019-01-28",null,23,23,67,67,null,null,0,0,null,null,null,1,0,null,null,null,{"$f":"\"   \" & TEXT(AB11,\"#0.00%\") & \" \"","v":"   0.00% "},null,null,null,null,null,null,null,null,null,null,null,null,null,{"$f":"\"  \" & \"프로젝트 수행 및 통제\" & \" \" & IF(M11=\"\",\"\",TEXT(M11,\"M/D-\")) & IF(N11=\"\",\"\",TEXT(N11,\"M/D\")) & \" \"","v":"  프로젝트 수행 및 통제 10/24-1/28 "}]
[null,null,3,"1.2.1",null,null,"월간보고1",null,null,null,null,null,"2018-10-27","2018-10-31",null,3,3,3,3,"2018-08-18","2018-08-22",3,3,1,"김길동",null,1,0,null,null,null,{"$f":"\"      \" & TEXT(AB12,\"#0.00%\") & \" \" & \"월간보고1\" & \"(김길동)\" & \" \" & IF(M12=\"\",\"\",TEXT(M12,\"M/D-\")) & IF(N12=\"\",\"\",TEXT(N12,\"M/D\")) & \" \"","v":"      0.00% 월간보고1(김길동) 10/27-10/31 "}]
[null,null,3,"1.2.2",null,null,"월간보고2",null,null,null,null,null,"2018-11-28","2018-11-28",null,1,1,1,1,null,null,null,0,1,"김길동",null,1,0,null,null,null,null,null,null,null,null,{"$f":"\"   \" & TEXT(AB13,\"#0.00%\") & \" \" & \"월간보고2\" & \"(김길동)\" & \" \" & IF(M13=\"\",\"\",TEXT(M13,\"M/D-\")) & IF(N13=\"\",\"\",TEXT(N13,\"M/D\")) & \" \"","v":"   0.00% 월간보고2(김길동) 11/28-11/28 "}]
[null,null,3,"1.2.3",null,null,"월간보고3",null,null,null,null,null,"2019-01-03","2019-01-28",null,18,18,18,18,null,null,null,0,1,null,null,1,0,null,null,null,null,null,null,null,null,null,null,null,null,null,{"$f":"\"    \" & TEXT(AB14,\"#0.00%\") & \" \"","v":"    0.00% "},null,null,null,{"$f":"\"  \" & \"월간보고3\" & \" \" & IF(M14=\"\",\"\",TEXT(M14,\"M/D-\")) & IF(N14=\"\",\"\",TEXT(N14,\"M/D\")) & \" \"","v":"  월간보고3 1/3-1/28 "}]
[null,null,3,"1.2.4",null,null,"중간보고",null,null,null,null,null,"2018-10-24","2018-10-24",null,1,1,1,1,null,null,null,0,1,null,null,1,0,null,null,null,{"$f":"\"   \" & TEXT(AB15,\"#0.00%\") & \" \" & \"중간보고\" & \" \" & IF(M15=\"\",\"\",TEXT(M15,\"M/D-\")) & IF(N15=\"\",\"\",TEXT(N15,\"M/D\")) & \" \"","v":"   0.00% 중간보고 10/24-10/24 "}]
[null,null,0,null,null,null,null,null,null,null,null,null,null,null,null,null,null,0,0,null,null,null,0]
[null,"G",2,"1.3",null,"프로젝트 종료",null,null,null,null,null,null,"2019-02-05","2019-03-02",null,15,15,16,16,null,null,0,0,null,null,null,1,0,null,null,null,null,null,null,null,null,null,null,null,null,null,null,null,null,null,null,{"$f":"\"  \" & TEXT(AB17,\"#0.00%\") & \" \"","v":"  0.00% "},null,null,null,{"$f":"\"\" & \"프로젝트 종료\" & \" \" & IF(M17=\"\",\"\",TEXT(M17,\"M/D-\")) & IF(N17=\"\",\"\",TEXT(N17,\"M/D\")) & \" \"","v":"프로젝트 종료 2/5-3/2 "}]
[null,null,3,"1.3.1",null,null,"종료계획수립",null,null,null,null,null,"2019-02-05","2019-02-09",null,2,2,2,2,null,null,null,0,1,"홍길동",null,1,0,null,null,null,null,null,null,null,null,null,null,null,null,null,null,null,null,null,null,{"$f":"\"  \" & TEXT(AB18,\"#0.00%\") & \" \" & \"종료계획수립\" & \"(홍길동)\" & \" \" & IF(M18=\"\",\"\",TEXT(M18,\"M/D-\")) & IF(N18=\"\",\"\",TEXT(N18,\"M/D\")) & \" \"","v":"  0.00% 종료계획수립(홍길동) 2/5-2/9 "}]
[null,null,3,"1.3.2",null,null,"시스템 인수인계",null,null,null,null,null,"2019-02-12","2019-03-02",null,13,13,13,13,null,null,null,0,1,"홍길동",null,1,0,null,null,null,null,null,null,null,null,null,null,null,null,null,null,null,null,null,null,null,{"$f":"\"  \" & TEXT(AB19,\"#0.00%\") & \" \"","v":"  0.00% "},null,null,{"$f":"\"\" & \"시스템 인수인계\" & \"(홍길동)\" & \" \" & IF(M19=\"\",\"\",TEXT(M19,\"M/D-\")) & IF(N19=\"\",\"\",TEXT(N19,\"M/D\")) & \" \"","v":"시스템 인수인계(홍길동) 2/12-3/2 "}]
[null,null,3,"1.3.3",null,null,"종료보고",null,null,null,null,null,"2019-03-02","2019-03-02",null,0,0,0,0,null,null,null,0,1,"홍길동",null,0,0,null,null,null,null,null,null,null,null,null,null,null,null,null,null,null,null,null,null,null,null,null,{"$f":"\"      \" & TEXT(AB20,\"#0.00%\") & \" \" & \"종료보고\" & \"(홍길동)\" & \" \" & IF(M20=\"\",\"\",TEXT(M20,\"M/D-\")) & IF(N20=\"\",\"\",TEXT(N20,\"M/D\")) & \" \"","v":"      0.00% 종료보고(홍길동) 3/2-3/2 "}]
[null,null,3,"1.3.4",null,null,"검수 및 종료",null,null,null,null,null,"2019-03-02","2019-03-02",null,0,0,0,0,null,null,null,0,1,"홍길동",null,0,0,null,null,null,null,null,null,null,null,null,null,null,null,null,null,null,null,null,null,null,null,null,{"$f":"\"      \" & TEXT(AB21,\"#0.00%\") & \" \" & \"검수 및 종료\" & \"(홍길동)\" & \" \" & IF(M21=\"\",\"\",TEXT(M21,\"M/D-\")) & IF(N21=\"\",\"\",TEXT(N21,\"M/D\")) & \" \"","v":"      0.00% 검수 및 종료(홍길동) 3/2-3/2 "}]
[null,"G",1,"2","시스템 개발",null,null,null,null,null,null,null,"2018-10-06","2019-02-08",null,219,219,84,84,null,null,0,0,null,null,null,1,7.7123287671232874E-2,null,null,{"$f":"\"  \" & TEXT(AB22,\"#0.00%\") & \" \"","v":"  7.71% "},null,null,null,null,null,null,null,null,null,null,null,null,null,null,null,{"$f":"\"      \" & \"시스템 개발\" & \" \" & IF(M22=\"\",\"\",TEXT(M22,\"M/D-\")) & IF(N22=\"\",\"\",TEXT(N22,\"M/D\")) & \" \"","v":"      시스템 개발 10/6-2/8 "}]
[null,"G",2,"2.1",null,"분석",null,null,null,null,null,null,"2018-10-06","2018-10-24",null,28,28,12,12,null,null,0,0,null,null,null,1,0.45,null,null,{"$f":"\" \" & TEXT(AB23,\"#0.00%\") & \" \" & \"분석\" & \" \" & IF(M23=\"\",\"\",TEXT(M23,\"M/D-\")) & IF(N23=\"\",\"\",TEXT(N23,\"M/D\")) & \" \"","v":" 45.00% 분석 10/6-10/24 "}]
[null,null,3,"2.1.1",null,null,"요구사항정의",null,null,null,null,null,"2018-10-06","2018-10-24",null,12,12,12,12,"2018-07-28","2018-08-15",12,12,1,"박길동,정길동,최길동",null,1,0.45,null,null,{"$f":"\" \" & TEXT(AB24,\"#0.00%\") & \" \" & \"요구사항정의\" & \"(박길동,정길동,최길동)\" & \" \" & IF(M24=\"\",\"\",TEXT(M24,\"M/D-\")) & IF(N24=\"\",\"\",TEXT(N24,\"M/D\")) & \" \"","v":" 45.00% 요구사항정의(박길동,정길동,최길동) 10/6-10/24 "}]
[null,"G",3,"2.1.2",null,null,"논리모델구축",null,null,null,null,null,"2018-10-12","2018-10-23",null,16,16,8,8,null,null,0,0,null,null,null,1,0.45,null,null,{"$f":"\"   \" & TEXT(AB25,\"#0.00%\") & \" \" & \"논리모델구축\" & \" \" & IF(M25=\"\",\"\",TEXT(M25,\"M/D-\")) & IF(N25=\"\",\"\",TEXT(N25,\"M/D\")) & \" \"","v":"   45.00% 논리모델구축 10/12-10/23 "}]
[null,null,4,"2.1.2.1",null,null,null,"프로세스모델링",null,null,null,null,"2018-10-12","2018-10-23",null,8,8,8,8,"2018-08-03","2018-08-14",8,8,1,"정길동",null,1,0.4,null,null,{"$f":"\"   \" & TEXT(AB26,\"#0.00%\") & \" \" & \"프로세스모델링\" & \"(정길동)\" & \" \" & IF(M26=\"\",\"\",TEXT(M26,\"M/D-\")) & IF(N26=\"\",\"\",TEXT(N26,\"M/D\")) & \" \"","v":"   40.00% 프로세스모델링(정길동) 10/12-10/23 "}]
[null,null,4,"2.1.2.2",null,null,null,"데이터모델링",null,null,null,null,"2018-10-12","2018-10-23",null,8,8,8,8,"2018-08-03","2018-08-14",8,8,1,"정길동","논리데이터모델링.pptx",1,0.5,null,null,{"$f":"\"    \" & TEXT(AB27,\"#0.00%\") & \" \" & \"데이터모델링\" & \"(정길동)\" & \" \" & IF(M27=\"\",\"\",TEXT(M27,\"M/D-\")) & IF(N27=\"\",\"\",TEXT(N27,\"M/D\")) & \" \"","v":"    50.00% 데이터모델링(정길동) 10/12-10/23 "}]
[null,"G",2,"2.2",null,"설계",null,null,null,null,null,null,"2018-10-26","2018-12-04",null,45,45,28,28,null,null,0,0,null,null,null,1,9.5333333333333339E-2,null,null,null,null,{"$f":"\"  \" & TEXT(AB28,\"#0.00%\") & \" \"","v":"  9.53% "},null,null,null,null,{"$f":"\"   \" & \"설계\" & \" \" & IF(M28=\"\",\"\",TEXT(M28,\"M/D-\")) & IF(N28=\"\",\"\",TEXT(N28,\"M/D\")) & \" \"","v":"   설계 10/26-12/4 "}]
[null,null,3,"2.2.1",null,null,"UI 설계",null,null,null,null,null,"2018-10-26","2018-11-13",null,13,13,13,13,"2018-08-17",null,-30942,0,1,"유아인",null,1,0.33,null,null,null,null,{"$f":"\"    \" & TEXT(AB29,\"#0.00%\") & \" \" & \"UI 설계\" & \"(유아인)\" & \" \" & IF(M29=\"\",\"\",TEXT(M29,\"M/D-\")) & IF(N29=\"\",\"\",TEXT(N29,\"M/D\")) & \" \"","v":"    33.00% UI 설계(유아인) 10/26-11/13 "}]
[null,"G",3,"2.2.2",null,null,"시스템 설계",null,null,null,null,null,"2018-11-02","2018-11-27",null,29,29,18,18,null,null,0,0,null,null,null,1,0,null,null,null,null,{"$f":"\"     \" & TEXT(AB30,\"#0.00%\") & \" \"","v":"     0.00% "},null,null,null,{"$f":"\"   \" & \"시스템 설계\" & \" \" & IF(M30=\"\",\"\",TEXT(M30,\"M/D-\")) & IF(N30=\"\",\"\",TEXT(N30,\"M/D\")) & \" \"","v":"   시스템 설계 11/2-11/27 "}]
[null,null,4,"2.2.2.1",null,null,null,"Architecture설계",null,null,null,null,"2018-11-02","2018-11-13",null,8,8,8,8,"2018-08-24",null,-30947,0,1,"김아키",null,1,0,null,null,null,null,{"$f":"\"     \" & TEXT(AB31,\"#0.00%\") & \" \" & \"Architecture설계\" & \"(김아키)\" & \" \" & IF(M31=\"\",\"\",TEXT(M31,\"M/D-\")) & IF(N31=\"\",\"\",TEXT(N31,\"M/D\")) & \" \"","v":"     0.00% Architecture설계(김아키) 11/2-11/13 "}]
[null,null,4,"2.2.2.2",null,null,null,"데이터베이스설계",null,null,null,null,"2018-11-09","2018-11-20",null,8,8,8,8,null,null,null,0,1,"김디비",null,1,0,null,null,null,null,null,{"$f":"\"     \" & TEXT(AB32,\"#0.00%\") & \" \" & \"데이터베이스설계\" & \"(김디비)\" & \" \" & IF(M32=\"\",\"\",TEXT(M32,\"M/D-\")) & IF(N32=\"\",\"\",TEXT(N32,\"M/D\")) & \" \"","v":"     0.00% 데이터베이스설계(김디비) 11/9-11/20 "}]
[null,null,4,"2.2.2.3",null,null,null,"프로그램설계",null,null,null,null,"2018-11-09","2018-11-27",null,13,13,13,13,null,null,null,0,1,"김프로","프로그램명세서",1,0,null,null,null,null,null,{"$f":"\"     \" & TEXT(AB33,\"#0.00%\") & \" \" & \"프로그램설계\" & \"(김프로)\" & \" \" & IF(M33=\"\",\"\",TEXT(M33,\"M/D-\")) & IF(N33=\"\",\"\",TEXT(N33,\"M/D\")) & \" \"","v":"     0.00% 프로그램설계(김프로) 11/9-11/27 "}]
[null,null,3,"2.2.3",null,null,"테스트 설계",null,null,null,null,null,"2018-11-30","2018-12-04",null,3,3,3,3,null,null,null,0,1,"김프로",null,1,0,null,null,null,null,null,null,null,null,{"$f":"\"     \" & TEXT(AB34,\"#0.00%\") & \" \" & \"테스트 설계\" & \"(김프로)\" & \" \" & IF(M34=\"\",\"\",TEXT(M34,\"M/D-\")) & IF(N34=\"\",\"\",TEXT(N34,\"M/D\")) & \" \"","v":"     0.00% 테스트 설계(김프로) 11/30-12/4 "}]
[null,"G",2,"2.3",null,"개발",null,null,null,null,null,null,"2018-11-30","2019-02-05",null,141,141,44,44,null,null,0,0,null,null,null,1,0,null,null,null,null,null,null,null,null,{"$f":"\"     \" & TEXT(AB35,\"#0.00%\") & \" \"","v":"     0.00% "},null,null,null,null,null,null,null,null,null,{"$f":"\"   \" & \"개발\" & \" \" & IF(M35=\"\",\"\",TEXT(M35,\"M/D-\")) & IF(N35=\"\",\"\",TEXT(N35,\"M/D\")) & \" \"","v":"   개발 11/30-2/5 "}]
[null,"G",3,"2.3.1",null,null,"프로그램 개발",null,null,null,null,null,"2018-11-30","2019-01-28",null,127,127,40,40,null,null,0,0,null,null,null,1,0,null,null,null,null,null,null,null,null,{"$f":"\"     \" & TEXT(AB36,\"#0.00%\") & \" \"","v":"     0.00% "},null,null,null,null,null,null,null,null,{"$f":"\"  \" & \"프로그램 개발\" & \" \" & IF(M36=\"\",\"\",TEXT(M36,\"M/D-\")) & IF(N36=\"\",\"\",TEXT(N36,\"M/D\")) & \" \"","v":"  프로그램 개발 11/30-1/28 "}]
[null,null,4,"2.3.1.1",null,null,null,"단위테스트시나리오작성",null,null,null,null,"2018-11-30","2018-12-04",null,3,3,3,3,null,null,null,0,1,"김프로",null,1,0,null,null,null,null,null,null,null,null,{"$f":"\"     \" & TEXT(AB37,\"#0.00%\") & \" \" & \"단위테스트시나리오작성\" & \"(김프로)\" & \" \" & IF(M37=\"\",\"\",TEXT(M37,\"M/D-\")) & IF(N37=\"\",\"\",TEXT(N37,\"M/D\")) & \" \"","v":"     0.00% 단위테스트시나리오작성(김프로) 11/30-12/4 "}]
[null,"G",4,"2.3.1.2",null,null,null,"프로그램코딩 및 단위테스트",null,null,null,null,"2018-11-30","2019-01-28",null,124,124,40,40,null,null,0,0,null,null,null,1,0,null,null,null,null,null,null,null,null,{"$f":"\"     \" & TEXT(AB38,\"#0.00%\") & \" \"","v":"     0.00% "},null,null,null,null,null,null,null,null,{"$f":"\"  \" & \"프로그램코딩 및 단위테스트\" & \" \" & IF(M38=\"\",\"\",TEXT(M38,\"M/D-\")) & IF(N38=\"\",\"\",TEXT(N38,\"M/D\")) & \" \"","v":"  프로그램코딩 및 단위테스트 11/30-1/28 "}]
[null,"G",5,"2.3.1.2.1",null,null,null,null,"모듈A",null,null,null,"2018-11-30","2018-12-18",null,14,14,13,13,null,null,0,0,null,null,null,1,0,null,null,null,null,null,null,null,null,{"$f":"\"     \" & TEXT(AB39,\"#0.00%\") & \" \" & \"모듈A\" & \" \" & IF(M39=\"\",\"\",TEXT(M39,\"M/D-\")) & IF(N39=\"\",\"\",TEXT(N39,\"M/D\")) & \" \"","v":"     0.00% 모듈A 11/30-12/18 "}]
[null,null,6,"2.3.1.2.1.1",null,null,null,null,null,"프로그램A",null,null,"2018-11-30","2018-12-04",null,3,3,3,3,null,null,null,0,1,"이개발",null,1,0,null,null,null,null,null,null,null,null,{"$f":"\"     \" & TEXT(AB40,\"#0.00%\") & \" \" & \"프로그램A\" & \"(이개발)\" & \" \" & IF(M40=\"\",\"\",TEXT(M40,\"M/D-\")) & IF(N40=\"\",\"\",TEXT(N40,\"M/D\")) & \" \"","v":"     0.00% 프로그램A(이개발) 11/30-12/4 "}]
[null,null,6,"2.3.1.2.1.2",null,null,null,null,null,"프로그램B",null,null,"2018-12-07","2018-12-11",null,3,3,3,3,null,null,null,0,1,"박개발",null,1,0,null,null,null,null,null,null,null,null,null,{"$f":"\"     \" & TEXT(AB41,\"#0.00%\") & \" \" & \"프로그램B\" & \"(박개발)\" & \" \" & IF(M41=\"\",\"\",TEXT(M41,\"M/D-\")) & IF(N41=\"\",\"\",TEXT(N41,\"M/D\")) & \" \"","v":"     0.00% 프로그램B(박개발) 12/7-12/11 "}]
[null,null,6,"2.3.1.2.1.3",null,null,null,null,null,"프로그램C",null,null,"2018-12-07","2018-12-18",null,8,8,8,8,null,null,null,0,1,"박개발",null,1,0,null,null,null,null,null,null,null,null,null,{"$f":"\"     \" & TEXT(AB42,\"#0.00%\") & \" \" & \"프로그램C\" & \"(박개발)\" & \" \" & IF(M42=\"\",\"\",TEXT(M42,\"M/D-\")) & IF(N42=\"\",\"\",TEXT(N42,\"M/D\")) & \" \"","v":"     0.00% 프로그램C(박개발) 12/7-12/18 "}]
[null,null,5,"2.3.1.2.2",null,null,null,null,"모듈B",null,null,null,"2018-11-30","2019-01-28",null,40,40,40,40,null,null,null,0,1,"이개발,박개발",null,1,0,null,null,null,null,null,null,null,null,{"$f":"\"     \" & TEXT(AB43,\"#0.00%\") & \" \"","v":"     0.00% "},null,null,null,null,null,null,null,null,{"$f":"\"  \" & \"모듈B\" & \"(이개발,박개발)\" & \" \" & IF(M43=\"\",\"\",TEXT(M43,\"M/D-\")) & IF(N43=\"\",\"\",TEXT(N43,\"M/D\")) & \" \"","v":"  모듈B(이개발,박개발) 11/30-1/28 "}]
[null,null,5,"2.3.1.2.3",null,null,null,null,"모듈C",null,null,null,"2018-11-30","2019-01-28",null,40,40,40,40,null,null,null,0,1,"이개발",null,1,0,null,null,null,null,null,null,null,null,{"$f":"\"     \" & TEXT(AB44,\"#0.00%\") & \" \"","v":"     0.00% "},null,null,null,null,null,null,null,null,{"$f":"\"  \" & \"모듈C\" & \"(이개발)\" & \" \" & IF(M44=\"\",\"\",TEXT(M44,\"M/D-\")) & IF(N44=\"\",\"\",TEXT(N44,\"M/D\")) & \" \"","v":"  모듈C(이개발) 11/30-1/28 "}]
[null,null,5,"2.3.1.2.4",null,null,null,null,"모듈D",null,null,null,"2018-12-14","2019-01-28",null,30,30,30,30,null,null,null,0,1,"박개발",null,1,0,null,null,null,null,null,null,null,null,null,null,{"$f":"\"     \" & TEXT(AB45,\"#0.00%\") & \" \"","v":"     0.00% "},null,null,null,null,null,null,{"$f":"\"  \" & \"모듈D\" & \"(박개발)\" & \" \" & IF(M45=\"\",\"\",TEXT(M45,\"M/D-\")) & IF(N45=\"\",\"\",TEXT(N45,\"M/D\")) & \" \"","v":"  모듈D(박개발) 12/14-1/28 "}]
[null,"G",3,"2.3.2",null,null,"테스트실시",null,null,null,null,null,"2019-01-11","2019-02-05",null,14,14,16,16,null,null,0,0,null,null,null,1,0,null,null,null,null,null,null,null,null,null,null,null,null,null,null,{"$f":"\"     \" & TEXT(AB46,\"#0.00%\") & \" \"","v":"     0.00% "},null,null,null,{"$f":"\"   \" & \"테스트실시\" & \" \" & IF(M46=\"\",\"\",TEXT(M46,\"M/D-\")) & IF(N46=\"\",\"\",TEXT(N46,\"M/D\")) & \" \"","v":"   테스트실시 1/11-2/5 "}]
[null,null,4,"2.3.2.1",null,null,null,"통합테스트실시",null,null,null,null,"2019-01-11","2019-01-29",null,13,13,13,13,null,null,null,0,1,"김프로",null,1,0,null,null,null,null,null,null,null,null,null,null,null,null,null,null,{"$f":"\"     \" & TEXT(AB47,\"#0.00%\") & \" \" & \"통합테스트실시\" & \"(김프로)\" & \" \" & IF(M47=\"\",\"\",TEXT(M47,\"M/D-\")) & IF(N47=\"\",\"\",TEXT(N47,\"M/D\")) & \" \"","v":"     0.00% 통합테스트실시(김프로) 1/11-1/29 "}]
[null,null,4,"2.3.2.2",null,null,null,"시스템테스트실시",null,null,null,null,"2019-02-01","2019-02-05",null,1,1,1,1,null,null,null,0,1,"김프로",null,1,0,null,null,null,null,null,null,null,null,null,null,null,null,null,null,null,null,null,{"$f":"\"     \" & TEXT(AB48,\"#0.00%\") & \" \" & \"시스템테스트실시\" & \"(김프로)\" & \" \" & IF(M48=\"\",\"\",TEXT(M48,\"M/D-\")) & IF(N48=\"\",\"\",TEXT(N48,\"M/D\")) & \" \"","v":"     0.00% 시스템테스트실시(김프로) 2/1-2/5 "}]
[null,"G",2,"2.4",null,"구현",null,null,null,null,null,null,"2019-02-01","2019-02-08",null,5,5,3,3,null,null,0,0,null,null,null,1,0,null,null,null,null,null,null,null,null,null,null,null,null,null,null,null,null,null,{"$f":"\"     \" & TEXT(AB49,\"#0.00%\") & \" \" & \"구현\" & \" \" & IF(M49=\"\",\"\",TEXT(M49,\"M/D-\")) & IF(N49=\"\",\"\",TEXT(N49,\"M/D\")) & \" \"","v":"     0.00% 구현 2/1-2/8 "}]
[null,"G",3,"2.4.1",null,null,"구현준비",null,null,null,null,null,"2019-02-01","2019-02-03",null,1,1,1,1,null,null,0,0,null,null,null,1,0,null,null,null,null,null,null,null,null,null,null,null,null,null,null,null,null,null,{"$f":"\"     \" & TEXT(AB50,\"#0.00%\") & \" \" & \"구현준비\" & \" \" & IF(M50=\"\",\"\",TEXT(M50,\"M/D-\")) & IF(N50=\"\",\"\",TEXT(N50,\"M/D\")) & \" \"","v":"     0.00% 구현준비 2/1-2/3 "}]
[null,null,4,"2.4.1.1",null,null,null,"Release 및 Contingency plan수립",null,null,null,null,"2019-02-01","2019-02-03",null,1,1,1,1,null,null,null,0,1,"김프로",null,1,0,null,null,null,null,null,null,null,null,null,null,null,null,null,null,null,null,null,{"$f":"\"     \" & TEXT(AB51,\"#0.00%\") & \" \" & \"Release 및 Contingency plan수립\" & \"(김프로)\" & \" \" & IF(M51=\"\",\"\",TEXT(M51,\"M/D-\")) & IF(N51=\"\",\"\",TEXT(N51,\"M/D\")) & \" \"","v":"     0.00% Release 및 Contingency plan수립(김프로) 2/1-2/3 "}]
[null,"G",3,"2.4.2",null,null,"Conversion 및 Release",null,null,null,null,null,"2019-02-05","2019-02-08",null,4,4,2,2,null,null,0,0,null,null,null,1,0,null,null,null,null,null,null,null,null,null,null,null,null,null,null,null,null,null,null,{"$f":"\"  \" & TEXT(AB52,\"#0.00%\") & \" \" & \"Conversion 및 Release\" & \" \" & IF(M52=\"\",\"\",TEXT(M52,\"M/D-\")) & IF(N52=\"\",\"\",TEXT(N52,\"M/D\")) & \" \"","v":"  0.00% Conversion 및 Release 2/5-2/8 "}]
[null,null,4,"2.4.2.1",null,null,null,"데이터베이스구축",null,null,null,null,"2019-02-05","2019-02-07",null,1,1,1,1,null,null,null,0,1,"김프로,김디비",null,1,0,null,null,null,null,null,null,null,null,null,null,null,null,null,null,null,null,null,null,{"$f":"\"  \" & TEXT(AB53,\"#0.00%\") & \" \" & \"데이터베이스구축\" & \"(김프로,김디비)\" & \" \" & IF(M53=\"\",\"\",TEXT(M53,\"M/D-\")) & IF(N53=\"\",\"\",TEXT(N53,\"M/D\")) & \" \"","v":"  0.00% 데이터베이스구축(김프로,김디비) 2/5-2/7 "}]
[null,null,4,"2.4.2.2",null,null,null,"소프트웨어설치",null,null,null,null,"2019-02-05","2019-02-07",null,1,1,1,1,null,null,null,0,1,"김프로,이개발",null,1,0,null,null,null,null,null,null,null,null,null,null,null,null,null,null,null,null,null,null,{"$f":"\"  \" & TEXT(AB54,\"#0.00%\") & \" \" & \"소프트웨어설치\" & \"(김프로,이개발)\" & \" \" & IF(M54=\"\",\"\",TEXT(M54,\"M/D-\")) & IF(N54=\"\",\"\",TEXT(N54,\"M/D\")) & \" \"","v":"  0.00% 소프트웨어설치(김프로,이개발) 2/5-2/7 "}]
[null,null,4,"2.4.2.3",null,null,null,"인수테스트실시",null,null,null,null,"2019-02-05","2019-02-07",null,1,1,1,1,null,null,null,0,1,"김프로,이개발",null,1,0,null,null,null,null,null,null,null,null,null,null,null,null,null,null,null,null,null,null,{"$f":"\"  \" & TEXT(AB55,\"#0.00%\") & \" \" & \"인수테스트실시\" & \"(김프로,이개발)\" & \" \" & IF(M55=\"\",\"\",TEXT(M55,\"M/D-\")) & IF(N55=\"\",\"\",TEXT(N55,\"M/D\")) & \" \"","v":"  0.00% 인수테스트실시(김프로,이개발) 2/5-2/7 "}]
[null,null,4,"2.4.2.4",null,null,null,"시스템오픈",null,null,null,null,"2019-02-08","2019-02-08",null,1,1,1,1,null,null,null,0,1,"김프로",null,1,0,null,null,null,null,null,null,null,null,null,null,null,null,null,null,null,null,null,null,{"$f":"\"     \" & TEXT(AB56,\"#0.00%\") & \" \" & \"시스템오픈\" & \"(김프로)\" & \" \" & IF(M56=\"\",\"\",TEXT(M56,\"M/D-\")) & IF(N56=\"\",\"\",TEXT(N56,\"M/D\")) & \" \"","v":"     0.00% 시스템오픈(김프로) 2/8-2/8 "}]

{"sheet":"Progress","index":4,"n_rows":24,"n_cols":4,"rows_kept":24,"cut":false,"hidden":false,"merged":[[17,3,17,6],[20,3,20,6],[23,3,23,6],[0,11,0,13],[3,0,3,1],[5,3,5,6],[8,3,8,6],[11,3,11,6],[14,3,14,6]]}
["프로젝트 진행율 - 일정변경 관리하지 않을때"]
["* 프로젝트 작업량과 진척율을 보여줍니다."]
["* \"스케줄업데이트\" 버튼 클릭 시 아래 항목이 자동계산됩니다."]
[]
[]
["프로젝트 전체 작업량",263,"Man/Day","프로젝트 전체의 작업량을 Man/Day로 표시한다. 가중치를 적용한 값이다."]
[]
[]
["현재일까지 계획된 작업량",263,"Man/Day","해당작업의 시작일부터 현재일까지의 작업기간을 의미함(현재 날짜까지 진행되었어야 할 기간)"]
[]
[]
["실제 진행된 작업량",21.89,"Man/Day","일정변경관리 하지 않을 때 현재까지 실제로 진행된 작업기간을 표시함(총기간 x 총실적진행율)"]
[]
[]
["실제 진행된 작업량",null,"Man/Day","일정변경 관리할 때 현재까지 실제로 투입된 작업기간을 표시함"]
[]
[]
["계획 진척율(A)",1,null,"현재날짜까지 계획된 진척율, WBS의 \"계획진척율\"의 전체 합계 진척율을 표시함"]
[]
[]
["실적 진척율(B)",8.3231939163498095E-2,null,"현재날짜까지 실제로 진행된 진척율, WBS의 \"실적진척율\"의 전체 합계 진척율을 표시함"]
[]
[]
["차이(B-A)",{"$f":"ACTUAL_RATE-PLANNED_RATE","v":-0.91676806083650186},null,"양수이면 계획보다 빨리 진행, 음수이면 지연"]

{"sheet":"AnalysisReport","index":5,"n_rows":29,"n_cols":6,"rows_kept":29,"cut":false,"hidden":false,"merged":[]}
[null,"계획진척율(주별)"]
[null,"* 주별로 프로젝트의 계획진적율을 보여줍니다."]
[null,"* \"계획진척율\" 메뉴를 클릭해야 갱신됨"]
[]
[]
[null,"시작일","완료일","Man-Day","누적\r\nMan-Day","진척율"]
[null,"2018-10-02","2018-10-06",1,{"$f":"D7","v":1},{"$f":"E7/$D$29","v":3.8022813688212928E-3}]
[null,"2018-10-07","2018-10-13",10,{"$f":"E7+D8","v":11},4.1825095057034217E-2]
[null,"2018-10-14","2018-10-20",15,{"$f":"E8+D9","v":26},9.8859315589353611E-2]
[null,"2018-10-21","2018-10-27",10,36,0.13688212927756654]
[null,"2018-10-28","2018-11-03",9,45,0.17110266159695817]
[null,"2018-11-04","2018-11-10",12,57,0.21673003802281368]
[null,"2018-11-11","2018-11-17",14,71,0.26996197718631176]
[null,"2018-11-18","2018-11-24",7,78,0.29657794676806082]
[null,"2018-11-25","2018-12-01",8,86,0.3269961977186312]
[null,"2018-12-02","2018-12-08",18,104,0.39543726235741444]
[null,"2018-12-09","2018-12-15",18,122,0.46387832699619774]
[null,"2018-12-16","2018-12-22",17,139,0.52851711026615966]
[null,"2018-12-23","2018-12-29",12,151,0.57414448669201523]
[null,"2018-12-30","2019-01-05",14,165,0.62737642585551334]
[null,"2019-01-06","2019-01-12",21,186,0.70722433460076051]
[null,"2019-01-13","2019-01-19",25,211,0.80228136882129275]
[null,"2019-01-20","2019-01-26",25,236,0.89733840304182511]
[null,"2019-01-27","2019-02-02",8,244,0.92775665399239549]
[null,"2019-02-03","2019-02-09",6,250,0.95057034220532322]
[null,"2019-02-10","2019-02-16",4,254,0.96577946768060841]
[null,"2019-02-17","2019-02-23",5,259,0.98479087452471481]
[null,"2019-02-24","2019-03-02",4,263,1]
[null,null,"Total",{"$f":"SUM(D7:D28)","v":263}]

{"sheet":"Calendar","index":6,"n_rows":305,"n_cols":9,"rows_kept":305,"cut":false,"hidden":false,"merged":[[1,0,1,7],[2,0,2,1],[2,3,2,4],[2,6,2,7]]}
[" 프로젝트 휴무일 Calendar 설정"]
["여기에는 프로젝트의 휴무일만 입력하세요.휴무일을 제외한 날짜는 근무일자로 설정됩니다. \r\n휴무일을 입력해야 작업기간 계산시 반영합니다. 입력한 일자만큼 작업기간에서 제외합니다.\r\n(단, 옵션창의 캘린더 설정에 따라 휴무일계산방법은 달라질 수 있습니다.)\r\n표준캘린더는 기본으로 적용되는 캘린더이며 특정 작업에 다른 캘린더를 지정하고 싶으면 \"사용자정의 캘린더1\", \"사용자정의 캘린더2\"에 휴무일을 지정하여 사용합니다."]
["표준캘린더",null,null,"사용자정의 캘린더1",null,null,"사용자정의 캘린더2"]
["휴무일명","휴무일자",null,"휴무일명","휴무일자",null,"휴무일명","휴무일자"]
["2018년 신정","2018-01-01",{"$f":"IF(B5>0,TEXT(B5,\"(aaa)\"),\"\")","v":"(월)"},null,null,{"$f":"IF(E5>0,TEXT(E5,\"(aaa)\"),\"\")","v":""},null,null,{"$f":"IF(H5>0,TEXT(H5,\"(aaa)\"),\"\")","v":""}]
["2018년 설연휴","2018-02-15","(목)",null,null,"",null,null,""]
["2018년 설날","2018-02-16","(금)",null,null,"",null,null,""]
["2018년 삼일절","2018-03-01","(목)",null,null,"",null,null,""]
["2018년 어린이날 대체휴일","2018-05-07","(월)",null,null,"",null,null,""]
["2018년 부처님오신날","2018-05-22","(화)",null,null,"",null,null,""]
["2018년 현충일","2018-06-06","(수)",null,null,"",null,null,""]
["2018년 광복절","2018-08-15","(수)",null,null,"",null,null,""]
["2018년 추석","2018-09-24","(월)",null,null,"",null,null,""]
["2018년 추석연휴","2018-09-25","(화)",null,null,"",null,null,""]
["2018년 추석 대체휴일","2018-09-26","(수)",null,null,"",null,null,""]
["2018년 개천절","2018-10-03","(수)",null,null,"",null,null,""]
["2018년 한글날","2018-10-09","(화)",null,null,"",null,null,""]
["2018년 성탄절","2018-12-25","(화)",null,null,"",null,null,""]
["2019년 신정","2019-01-01","(화)",null,null,"",null,null,""]
["2019년 설연휴","2019-02-04","(월)",null,null,"",null,null,""]
["2019년 설날","2019-02-05","(화)",null,null,"",null,null,""]
["2019년 설연휴","2019-02-06","(수)",null,null,"",null,null,""]
["2019년 삼일절","2019-03-01","(금)",null,null,"",null,null,""]
["2019년 어린이날 대체휴일","2019-05-06","(월)",null,null,"",null,null,""]
["2019년 현충일","2019-06-06","(목)",null,null,"",null,null,""]
["2019년 광복절","2019-08-15","(목)",null,null,"",null,null,""]
["2019년 추석연휴","2019-09-12","(목)",null,null,"",null,null,""]
["2019년 추석","2019-09-13","(금)",null,null,"",null,null,""]
["2019년 개천절","2019-10-03","(목)",null,null,"",null,null,""]
["2019년 한글날","2019-10-09","(수)",null,null,"",null,null,""]
["2019년 성탄절","2019-12-25","(수)",null,null,"",null,null,""]
[null,null,"",null,null,"",null,null,""]
[null,null,"",null,null,"",null,null,""]
[null,null,"",null,null,"",null,null,""]
[null,null,"",null,null,"",null,null,""]
[null,null,"",null,null,"",null,null,""]
[null,null,"",null,null,"",null,null,""]
[null,null,"",null,null,"",null,null,""]
[null,null,"",null,null,"",null,null,""]
[null,null,"",null,null,"",null,null,""]
[null,null,"",null,null,"",null,null,""]
[null,null,"",null,null,"",null,null,""]
[null,null,"",null,null,"",null,null,""]
[null,null,"",null,null,"",null,null,""]
[null,null,"",null,null,"",null,null,""]
[null,null,"",null,null,"",null,null,""]
[null,null,"",null,null,"",null,null,""]
[null,null,"",null,null,"",null,null,""]
[null,null,"",null,null,"",null,null,""]
[null,null,"",null,null,"",null,null,""]
[null,null,"",null,null,"",null,null,""]
[null,null,"",null,null,"",null,null,""]
[null,null,"",null,null,"",null,null,""]
[null,null,"",null,null,"",null,null,""]
[null,null,"",null,null,"",null,null,""]
[null,null,"",null,null,"",null,null,""]
[null,null,"",null,null,"",null,null,""]
[null,null,"",null,null,"",null,null,""]
[null,null,"",null,null,"",null,null,""]
[null,null,"",null,null,"",null,null,""]
[null,null,"",null,null,"",null,null,""]
[null,null,"",null,null,"",null,null,""]
[null,null,"",null,null,"",null,null,""]
[null,null,"",null,null,"",null,null,""]
[null,null,"",null,null,"",null,null,""]
[null,null,"",null,null,"",null,null,""]
[null,null,"",null,null,"",null,null,""]
[null,null,"",null,null,"",null,null,""]
[null,null,{"$f":"IF(B69>0,TEXT(B69,\"(aaa)\"),\"\")","v":""},null,null,{"$f":"IF(E69>0,TEXT(E69,\"(aaa)\"),\"\")","v":""},null,null,{"$f":"IF(H69>0,TEXT(H69,\"(aaa)\"),\"\")","v":""}]
[null,null,"",null,null,"",null,null,""]
[null,null,"",null,null,"",null,null,""]
[null,null,"",null,null,"",null,null,""]
[null,null,"",null,null,"",null,null,""]
[null,null,"",null,null,"",null,null,""]
[null,null,"",null,null,"",null,null,""]
[null,null,"",null,null,"",null,null,""]
[null,null,"",null,null,"",null,null,""]
[null,null,"",null,null,"",null,null,""]
[null,null,"",null,null,"",null,null,""]
[null,null,"",null,null,"",null,null,""]
[null,null,"",null,null,"",null,null,""]
[null,null,"",null,null,"",null,null,""]
[null,null,"",null,null,"",null,null,""]
[null,null,"",null,null,"",null,null,""]
[null,null,"",null,null,"",null,null,""]
[null,null,"",null,null,"",null,null,""]
[null,null,"",null,null,"",null,null,""]
[null,null,"",null,null,"",null,null,""]
[null,null,"",null,null,"",null,null,""]
[null,null,"",null,null,"",null,null,""]
[null,null,"",null,null,"",null,null,""]
[null,null,"",null,null,"",null,null,""]
[null,null,"",null,null,"",null,null,""]
[null,null,"",null,null,"",null,null,""]
[null,null,"",null,null,"",null,null,""]
[null,null,"",null,null,"",null,null,""]
[null,null,"",null,null,"",null,null,""]
[null,null,"",null,null,"",null,null,""]
[null,null,"",null,null,"",null,null,""]
[null,null,"",null,null,"",null,null,""]
[null,null,"",null,null,"",null,null,""]
[null,null,"",null,null,"",null,null,""]
[null,null,"",null,null,"",null,null,""]
[null,null,"",null,null,"",null,null,""]
[null,null,"",null,null,"",null,null,""]
[null,null,"",null,null,"",null,null,""]
[null,null,"",null,null,"",null,null,""]
[null,null,"",null,null,"",null,null,""]
[null,null,"",null,null,"",null,null,""]
[null,null,"",null,null,"",null,null,""]
[null,null,"",null,null,"",null,null,""]
[null,null,"",null,null,"",null,null,""]
[null,null,"",null,null,"",null,null,""]
[null,null,"",null,null,"",null,null,""]
[null,null,"",null,null,"",null,null,""]
[null,null,"",null,null,"",null,null,""]
[null,null,"",null,null,"",null,null,""]
[null,null,"",null,null,"",null,null,""]
[null,null,"",null,null,"",null,null,""]
[null,null,"",null,null,"",null,null,""]
[null,null,"",null,null,"",null,null,""]
[null,null,"",null,null,"",null,null,""]
[null,null,"",null,null,"",null,null,""]
[null,null,"",null,null,"",null,null,""]
[null,null,"",null,null,"",null,null,""]
[null,null,"",null,null,"",null,null,""]
[null,null,"",null,null,"",null,null,""]
[null,null,"",null,null,"",null,null,""]
[null,null,"",null,null,"",null,null,""]
[null,null,"",null,null,"",null,null,""]
[null,null,"",null,null,"",null,null,""]
[null,null,"",null,null,"",null,null,""]
[null,null,{"$f":"IF(B133>0,TEXT(B133,\"(aaa)\"),\"\")","v":""},null,null,{"$f":"IF(E133>0,TEXT(E133,\"(aaa)\"),\"\")","v":""},null,null,{"$f":"IF(H133>0,TEXT(H133,\"(aaa)\"),\"\")","v":""}]
[null,null,"",null,null,"",null,null,""]
[null,null,"",null,null,"",null,null,""]
[null,null,"",null,null,"",null,null,""]
[null,null,"",null,null,"",null,null,""]
[null,null,"",null,null,"",null,null,""]
[null,null,"",null,null,"",null,null,""]
[null,null,"",null,null,"",null,null,""]
[null,null,"",null,null,"",null,null,""]
[null,null,"",null,null,"",null,null,""]
[null,null,"",null,null,"",null,null,""]
[null,null,"",null,null,"",null,null,""]
[null,null,"",null,null,"",null,null,""]
[null,null,"",null,null,"",null,null,""]
[null,null,"",null,null,"",null,null,""]
[null,null,"",null,null,"",null,null,""]
[null,null,"",null,null,"",null,null,""]
[null,null,"",null,null,"",null,null,""]
[null,null,"",null,null,"",null,null,""]
[null,null,"",null,null,"",null,null,""]
[null,null,"",null,null,"",null,null,""]
[null,null,"",null,null,"",null,null,""]
[null,null,"",null,null,"",null,null,""]
[null,null,"",null,null,"",null,null,""]
[null,null,"",null,null,"",null,null,""]
[null,null,"",null,null,"",null,null,""]
[null,null,"",null,null,"",null,null,""]
[null,null,"",null,null,"",null,null,""]
[null,null,"",null,null,"",null,null,""]
[null,null,"",null,null,"",null,null,""]
[null,null,"",null,null,"",null,null,""]
[null,null,"",null,null,"",null,null,""]
[null,null,"",null,null,"",null,null,""]
[null,null,"",null,null,"",null,null,""]
[null,null,"",null,null,"",null,null,""]
[null,null,"",null,null,"",null,null,""]
[null,null,"",null,null,"",null,null,""]
[null,null,"",null,null,"",null,null,""]
[null,null,"",null,null,"",null,null,""]
[null,null,"",null,null,"",null,null,""]
[null,null,"",null,null,"",null,null,""]
[null,null,"",null,null,"",null,null,""]
[null,null,"",null,null,"",null,null,""]
[null,null,"",null,null,"",null,null,""]
[null,null,"",null,null,"",null,null,""]
[null,null,"",null,null,"",null,null,""]
[null,null,"",null,null,"",null,null,""]
[null,null,"",null,null,"",null,null,""]
[null,null,"",null,null,"",null,null,""]
[null,null,"",null,null,"",null,null,""]
[null,null,"",null,null,"",null,null,""]
[null,null,"",null,null,"",null,null,""]
[null,null,"",null,null,"",null,null,""]
[null,null,"",null,null,"",null,null,""]
[null,null,"",null,null,"",null,null,""]
[null,null,"",null,null,"",null,null,""]
[null,null,"",null,null,"",null,null,""]
[null,null,"",null,null,"",null,null,""]
[null,null,"",null,null,"",null,null,""]
[null,null,"",null,null,"",null,null,""]
[null,null,"",null,null,"",null,null,""]
[null,null,"",null,null,"",null,null,""]
[null,null,"",null,null,"",null,null,""]
[null,null,"",null,null,"",null,null,""]
[null,null,{"$f":"IF(B197>0,TEXT(B197,\"(aaa)\"),\"\")","v":""},null,null,{"$f":"IF(E197>0,TEXT(E197,\"(aaa)\"),\"\")","v":""},null,null,{"$f":"IF(H197>0,TEXT(H197,\"(aaa)\"),\"\")","v":""}]
[null,null,"",null,null,"",null,null,""]
[null,null,"",null,null,"",null,null,""]
[null,null,"",null,null,"",null,null,""]
[null,null,"",null,null,"",null,null,""]
[null,null,"",null,null,"",null,null,""]
[null,null,"",null,null,"",null,null,""]
[null,null,"",null,null,"",null,null,""]
[null,null,"",null,null,"",null,null,""]
[null,null,"",null,null,"",null,null,""]
[null,null,"",null,null,"",null,null,""]
[null,null,"",null,null,"",null,null,""]
[null,null,"",null,null,"",null,null,""]
[null,null,"",null,null,"",null,null,""]
[null,null,"",null,null,"",null,null,""]
[null,null,"",null,null,"",null,null,""]
[null,null,"",null,null,"",null,null,""]
[null,null,"",null,null,"",null,null,""]
[null,null,"",null,null,"",null,null,""]
[null,null,"",null,null,"",null,null,""]
[null,null,"",null,null,"",null,null,""]
[null,null,"",null,null,"",null,null,""]
[null,null,"",null,null,"",null,null,""]
[null,null,"",null,null,"",null,null,""]
[null,null,"",null,null,"",null,null,""]
[null,null,"",null,null,"",null,null,""]
[null,null,"",null,null,"",null,null,""]
[null,null,"",null,null,"",null,null,""]
[null,null,"",null,null,"",null,null,""]
[null,null,"",null,null,"",null,null,""]
[null,null,"",null,null,"",null,null,""]
[null,null,"",null,null,"",null,null,""]
[null,null,"",null,null,"",null,null,""]
[null,null,"",null,null,"",null,null,""]
[null,null,"",null,null,"",null,null,""]
[null,null,"",null,null,"",null,null,""]
[null,null,"",null,null,"",null,null,""]
[null,null,"",null,null,"",null,null,""]
[null,null,"",null,null,"",null,null,""]
[null,null,"",null,null,"",null,null,""]
[null,null,"",null,null,"",null,null,""]
[null,null,"",null,null,"",null,null,""]
[null,null,"",null,null,"",null,null,""]
[null,null,"",null,null,"",null,null,""]
[null,null,"",null,null,"",null,null,""]
[null,null,"",null,null,"",null,null,""]
[null,null,"",null,null,"",null,null,""]
[null,null,"",null,null,"",null,null,""]
[null,null,"",null,null,"",null,null,""]
[null,null,"",null,null,"",null,null,""]
[null,null,"",null,null,"",null,null,""]
[null,null,"",null,null,"",null,null,""]
[null,null,"",null,null,"",null,null,""]
[null,null,"",null,null,"",null,null,""]
[null,null,"",null,null,"",null,null,""]
[null,null,"",null,null,"",null,null,""]
[null,null,"",null,null,"",null,null,""]
[null,null,"",null,null,"",null,null,""]
[null,null,"",null,null,"",null,null,""]
[null,null,"",null,null,"",null,null,""]
[null,null,"",null,null,"",null,null,""]
[null,null,"",null,null,"",null,null,""]
[null,null,"",null,null,"",null,null,""]
[null,null,"",null,null,"",null,null,""]
[null,null,{"$f":"IF(B261>0,TEXT(B261,\"(aaa)\"),\"\")","v":""},null,null,{"$f":"IF(E261>0,TEXT(E261,\"(aaa)\"),\"\")","v":""},null,null,{"$f":"IF(H261>0,TEXT(H261,\"(aaa)\"),\"\")","v":""}]
[null,null,"",null,null,"",null,null,""]
[null,null,"",null,null,"",null,null,""]
[null,null,"",null,null,"",null,null,""]
[null,null,"",null,null,"",null,null,""]
[null,null,"",null,null,"",null,null,""]
[null,null,"",null,null,"",null,null,""]
[null,null,"",null,null,"",null,null,""]
[null,null,"",null,null,"",null,null,""]
[null,null,"",null,null,"",null,null,""]
[null,null,"",null,null,"",null,null,""]
[null,null,"",null,null,"",null,null,""]
[null,null,"",null,null,"",null,null,""]
[null,null,"",null,null,"",null,null,""]
[null,null,"",null,null,"",null,null,""]
[null,null,"",null,null,"",null,null,""]
[null,null,"",null,null,"",null,null,""]
[null,null,"",null,null,"",null,null,""]
[null,null,"",null,null,"",null,null,""]
[null,null,"",null,null,"",null,null,""]
[null,null,"",null,null,"",null,null,""]
[null,null,"",null,null,"",null,null,""]
[null,null,"",null,null,"",null,null,""]
[null,null,"",null,null,"",null,null,""]
[null,null,"",null,null,"",null,null,""]
[null,null,"",null,null,"",null,null,""]
[null,null,"",null,null,"",null,null,""]
[null,null,"",null,null,"",null,null,""]
[null,null,"",null,null,"",null,null,""]
[null,null,"",null,null,"",null,null,""]
[null,null,"",null,null,"",null,null,""]
[null,null,"",null,null,"",null,null,""]
[null,null,"",null,null,"",null,null,""]
[null,null,"",null,null,"",null,null,""]
[null,null,"",null,null,"",null,null,""]
[null,null,"",null,null,"",null,null,""]
[null,null,"",null,null,"",null,null,""]
[null,null,"",null,null,"",null,null,""]
[null,null,"",null,null,"",null,null,""]
[null,null,"",null,null,"",null,null,""]
[null,null,"",null,null,"",null,null,""]
[null,null,"",null,null,"",null,null,""]
[null,null,"",null,null,"",null,null,""]
[null,null,"",null,null,"",null,null,""]
["더 이상 입력불가",null,null,"더 이상 입력불가",null,null,"더 이상 입력불가"]